{"text_format":"3","workbook":"xlsx","n_sheets":2,"sheets":["Órarend","Tantárgylista"],"not_rendered":{"defined_names":17},"read":"whole","date_system":"1900"}

{"sheet":"Órarend","index":0,"n_rows":56,"n_cols":9,"rows_kept":56,"merged":[[0,1,1,5],[0,8,1,8]]}
[null,"ÓRAREND",{"$nulls":4},"ÓRAREND KEZDETE","IDŐKÖZ","Tantárgylista"]
[{"$nulls":6},"08:00:00","15 PERC"]
[null,"IDŐPONT","VASÁRNAP","HÉTFŐ","KEDD","SZERDA","CSÜTÖRTÖK","PÉNTEK","SZOMBAT"]
[null,{"$f":"ÓrarendKezdete","v":"08:00:00"},{"$f":"IFERROR(INDEX(Tantárgylista[],MATCH(SUMPRODUCT((Tantárgylista[NAP]=Órarend[[#Headers],[VASÁRNAP]])*(ROUNDDOWN($B4,10)>=ROUNDDOWN(Tantárgylista[KEZDÉS IDŐPONTJA],10))*($B4<=Tantárgylista[BEFEJEZÉS IDŐPONTJA]),Tantárgylista[EGYEDI]),Tantárgylista[EGYEDI],0),2),0)","v":0},{"$f":"IFERROR(INDEX(Tantárgylista[],MATCH(SUMPRODUCT((Tantárgylista[NAP]=Órarend[[#Headers],[HÉTFŐ]])*(ROUNDDOWN($B4,10)>=ROUNDDOWN(Tantárgylista[KEZDÉS IDŐPONTJA],10))*($B4<=Tantárgylista[BEFEJEZÉS IDŐPONTJA]),Tantárgylista[EGYEDI]),Tantárgylista[EGYEDI],0),2),0)","v":0},{"$f":"IFERROR(INDEX(Tantárgylista[],MATCH(SUMPRODUCT((Tantárgylista[NAP]=Órarend[[#Headers],[KEDD]])*(ROUNDDOWN($B4,10)>=ROUNDDOWN(Tantárgylista[KEZDÉS IDŐPONTJA],10))*($B4<=Tantárgylista[BEFEJEZÉS IDŐPONTJA]),Tantárgylista[EGYEDI]),Tantárgylista[EGYEDI],0),2),0)","v":0},{"$f":"IFERROR(INDEX(Tantárgylista[],MATCH(SUMPRODUCT((Tantárgylista[NAP]=Órarend[[#Headers],[SZERDA]])*(ROUNDDOWN($B4,10)>=ROUNDDOWN(Tantárgylista[KEZDÉS IDŐPONTJA],10))*($B4<=Tantárgylista[BEFEJEZÉS IDŐPONTJA]),Tantárgylista[EGYEDI]),Tantárgylista[EGYEDI],0),2),0)","v":0},{"$f":"IFERROR(INDEX(Tantárgylista[],MATCH(SUMPRODUCT((Tantárgylista[NAP]=Órarend[[#Headers],[CSÜTÖRTÖK]])*(ROUNDDOWN($B4,10)>=ROUNDDOWN(Tantárgylista[KEZDÉS IDŐPONTJA],10))*($B4<=Tantárgylista[BEFEJEZÉS IDŐPONTJA]),Tantárgylista[EGYEDI]),Tantárgylista[EGYEDI],0),2),0)","v":0},{"$f":"IFERROR(INDEX(Tantárgylista[],MATCH(SUMPRODUCT((Tantárgylista[NAP]=Órarend[[#Headers],[PÉNTEK]])*(ROUNDDOWN($B4,10)>=ROUNDDOWN(Tantárgylista[KEZDÉS IDŐPONTJA],10))*($B4<=Tantárgylista[BEFEJEZÉS IDŐPONTJA]),Tantárgylista[EGYEDI]),Tantárgylista[EGYEDI],0),2),0)","v":0},{"$f":"IFERROR(INDEX(Tantárgylista[],MATCH(SUMPRODUCT((Tantárgylista[NAP]=Órarend[[#Headers],[SZOMBAT]])*(ROUNDDOWN($B4,10)>=ROUNDDOWN(Tantárgylista[KEZDÉS IDŐPONTJA],10))*($B4<=Tantárgylista[BEFEJEZÉS IDŐPONTJA]),Tantárgylista[EGYEDI]),Tantárgylista[EGYEDI],0),2),0)","v":0}]
[null,{"$f":"B4+Növelés","v":"08:15:00"},{"$f":"IFERROR(INDEX(Tantárgylista[],MATCH(SUMPRODUCT((Tantárgylista[NAP]=Órarend[[#Headers],[VASÁRNAP]])*(ROUNDDOWN($B5,10)>=ROUNDDOWN(Tantárgylista[KEZDÉS IDŐPONTJA],10))*($B5<=Tantárgylista[BEFEJEZÉS IDŐPONTJA]),Tantárgylista[EGYEDI]),Tantárgylista[EGYEDI],0),2),0)","v":0},{"$f":"IFERROR(INDEX(Tantárgylista[],MATCH(SUMPRODUCT((Tantárgylista[NAP]=Órarend[[#Headers],[HÉTFŐ]])*(ROUNDDOWN($B5,10)>=ROUNDDOWN(Tantárgylista[KEZDÉS IDŐPONTJA],10))*($B5<=Tantárgylista[BEFEJEZÉS IDŐPONTJA]),Tantárgylista[EGYEDI]),Tantárgylista[EGYEDI],0),2),0)","v":"MAT-113"},{"$f":"IFERROR(INDEX(Tantárgylista[],MATCH(SUMPRODUCT((Tantárgylista[NAP]=Órarend[[#Headers],[KEDD]])*(ROUNDDOWN($B5,10)>=ROUNDDOWN(Tantárgylista[KEZDÉS IDŐPONTJA],10))*($B5<=Tantárgylista[BEFEJEZÉS IDŐPONTJA]),Tantárgylista[EGYEDI]),Tantárgylista[EGYEDI],0),2),0)","v":0},{"$f":"IFERROR(INDEX(Tantárgylista[],MATCH(SUMPRODUCT((Tantárgylista[NAP]=Órarend[[#Headers],[SZERDA]])*(ROUNDDOWN($B5,10)>=ROUNDDOWN(Tantárgylista[KEZDÉS IDŐPONTJA],10))*($B5<=Tantárgylista[BEFEJEZÉS IDŐPONTJA]),Tantárgylista[EGYEDI]),Tantárgylista[EGYEDI],0),2),0)","v":"MAT-113"},{"$f":"IFERROR(INDEX(Tantárgylista[],MATCH(SUMPRODUCT((Tantárgylista[NAP]=Órarend[[#Headers],[CSÜTÖRTÖK]])*(ROUNDDOWN($B5,10)>=ROUNDDOWN(Tantárgylista[KEZDÉS IDŐPONTJA],10))*($B5<=Tantárgylista[BEFEJEZÉS IDŐPONTJA]),Tantárgylista[EGYEDI]),Tantárgylista[EGYEDI],0),2),0)","v":0},{"$f":"IFERROR(INDEX(Tantárgylista[],MATCH(SUMPRODUCT((Tantárgylista[NAP]=Órarend[[#Headers],[PÉNTEK]])*(ROUNDDOWN($B5,10)>=ROUNDDOWN(Tantárgylista[KEZDÉS IDŐPONTJA],10))*($B5<=Tantárgylista[BEFEJEZÉS IDŐPONTJA]),Tantárgylista[EGYEDI]),Tantárgylista[EGYEDI],0),2),0)","v":"MAT-113"},{"$f":"IFERROR(INDEX(Tantárgylista[],MATCH(SUMPRODUCT((Tantárgylista[NAP]=Órarend[[#Headers],[SZOMBAT]])*(ROUNDDOWN($B5,10)>=ROUNDDOWN(Tantárgylista[KEZDÉS IDŐPONTJA],10))*($B5<=Tantárgylista[BEFEJEZÉS IDŐPONTJA]),Tantárgylista[EGYEDI]),Tantárgylista[EGYEDI],0),2),0)","v":0}]
[null,"08:30:00",{"$f":"IFERROR(INDEX(Tantárgylista[],MATCH(SUMPRODUCT((Tantárgylista[NAP]=Órarend[[#Headers],[VASÁRNAP]])*(ROUNDDOWN($B6,10)>=ROUNDDOWN(Tantárgylista[KEZDÉS IDŐPONTJA],10))*($B6<=Tantárgylista[BEFEJEZÉS IDŐPONTJA]),Tantárgylista[EGYEDI]),Tantárgylista[EGYEDI],0),2),0)","v":0},{"$f":"IFERROR(INDEX(Tantárgylista[],MATCH(SUMPRODUCT((Tantárgylista[NAP]=Órarend[[#Headers],[HÉTFŐ]])*(ROUNDDOWN($B6,10)>=ROUNDDOWN(Tantárgylista[KEZDÉS IDŐPONTJA],10))*($B6<=Tantárgylista[BEFEJEZÉS IDŐPONTJA]),Tantárgylista[EGYEDI]),Tantárgylista[EGYEDI],0),2),0)","v":"MAT-113"},{"$f":"IFERROR(INDEX(Tantárgylista[],MATCH(SUMPRODUCT((Tantárgylista[NAP]=Órarend[[#Headers],[KEDD]])*(ROUNDDOWN($B6,10)>=ROUNDDOWN(Tantárgylista[KEZDÉS IDŐPONTJA],10))*($B6<=Tantárgylista[BEFEJEZÉS IDŐPONTJA]),Tantárgylista[EGYEDI]),Tantárgylista[EGYEDI],0),2),0)","v":0},{"$f":"IFERROR(INDEX(Tantárgylista[],MATCH(SUMPRODUCT((Tantárgylista[NAP]=Órarend[[#Headers],[SZERDA]])*(ROUNDDOWN($B6,10)>=ROUNDDOWN(Tantárgylista[KEZDÉS IDŐPONTJA],10))*($B6<=Tantárgylista[BEFEJEZÉS IDŐPONTJA]),Tantárgylista[EGYEDI]),Tantárgylista[EGYEDI],0),2),0)","v":"MAT-113"},{"$f":"IFERROR(INDEX(Tantárgylista[],MATCH(SUMPRODUCT((Tantárgylista[NAP]=Órarend[[#Headers],[CSÜTÖRTÖK]])*(ROUNDDOWN($B6,10)>=ROUNDDOWN(Tantárgylista[KEZDÉS IDŐPONTJA],10))*($B6<=Tantárgylista[BEFEJEZÉS IDŐPONTJA]),Tantárgylista[EGYEDI]),Tantárgylista[EGYEDI],0),2),0)","v":0},{"$f":"IFERROR(INDEX(Tantárgylista[],MATCH(SUMPRODUCT((Tantárgylista[NAP]=Órarend[[#Headers],[PÉNTEK]])*(ROUNDDOWN($B6,10)>=ROUNDDOWN(Tantárgylista[KEZDÉS IDŐPONTJA],10))*($B6<=Tantárgylista[BEFEJEZÉS IDŐPONTJA]),Tantárgylista[EGYEDI]),Tantárgylista[EGYEDI],0),2),0)","v":"MAT-113"},{"$f":"IFERROR(INDEX(Tantárgylista[],MATCH(SUMPRODUCT((Tantárgylista[NAP]=Órarend[[#Headers],[SZOMBAT]])*(ROUNDDOWN($B6,10)>=ROUNDDOWN(Tantárgylista[KEZDÉS IDŐPONTJA],10))*($B6<=Tantárgylista[BEFEJEZÉS IDŐPONTJA]),Tantárgylista[EGYEDI]),Tantárgylista[EGYEDI],0),2),0)","v":0}]
[null,"08:45:00",{"$f":"IFERROR(INDEX(Tantárgylista[],MATCH(SUMPRODUCT((Tantárgylista[NAP]=Órarend[[#Headers],[VASÁRNAP]])*(ROUNDDOWN($B7,10)>=ROUNDDOWN(Tantárgylista[KEZDÉS IDŐPONTJA],10))*($B7<=Tantárgylista[BEFEJEZÉS IDŐPONTJA]),Tantárgylista[EGYEDI]),Tantárgylista[EGYEDI],0),2),0)","v":0},{"$f":"IFERROR(INDEX(Tantárgylista[],MATCH(SUMPRODUCT((Tantárgylista[NAP]=Órarend[[#Headers],[HÉTFŐ]])*(ROUNDDOWN($B7,10)>=ROUNDDOWN(Tantárgylista[KEZDÉS IDŐPONTJA],10))*($B7<=Tantárgylista[BEFEJEZÉS IDŐPONTJA]),Tantárgylista[EGYEDI]),Tantárgylista[EGYEDI],0),2),0)","v":"MAT-113"},{"$f":"IFERROR(INDEX(Tantárgylista[],MATCH(SUMPRODUCT((Tantárgylista[NAP]=Órarend[[#Headers],[KEDD]])*(ROUNDDOWN($B7,10)>=ROUNDDOWN(Tantárgylista[KEZDÉS IDŐPONTJA],10))*($B7<=Tantárgylista[BEFEJEZÉS IDŐPONTJA]),Tantárgylista[EGYEDI]),Tantárgylista[EGYEDI],0),2),0)","v":0},{"$f":"IFERROR(INDEX(Tantárgylista[],MATCH(SUMPRODUCT((Tantárgylista[NAP]=Órarend[[#Headers],[SZERDA]])*(ROUNDDOWN($B7,10)>=ROUNDDOWN(Tantárgylista[KEZDÉS IDŐPONTJA],10))*($B7<=Tantárgylista[BEFEJEZÉS IDŐPONTJA]),Tantárgylista[EGYEDI]),Tantárgylista[EGYEDI],0),2),0)","v":"MAT-113"},{"$f":"IFERROR(INDEX(Tantárgylista[],MATCH(SUMPRODUCT((Tantárgylista[NAP]=Órarend[[#Headers],[CSÜTÖRTÖK]])*(ROUNDDOWN($B7,10)>=ROUNDDOWN(Tantárgylista[KEZDÉS IDŐPONTJA],10))*($B7<=Tantárgylista[BEFEJEZÉS IDŐPONTJA]),Tantárgylista[EGYEDI]),Tantárgylista[EGYEDI],0),2),0)","v":0},{"$f":"IFERROR(INDEX(Tantárgylista[],MATCH(SUMPRODUCT((Tantárgylista[NAP]=Órarend[[#Headers],[PÉNTEK]])*(ROUNDDOWN($B7,10)>=ROUNDDOWN(Tantárgylista[KEZDÉS IDŐPONTJA],10))*($B7<=Tantárgylista[BEFEJEZÉS IDŐPONTJA]),Tantárgylista[EGYEDI]),Tantárgylista[EGYEDI],0),2),0)","v":"MAT-113"},{"$f":"IFERROR(INDEX(Tantárgylista[],MATCH(SUMPRODUCT((Tantárgylista[NAP]=Órarend[[#Headers],[SZOMBAT]])*(ROUNDDOWN($B7,10)>=ROUNDDOWN(Tantárgylista[KEZDÉS IDŐPONTJA],10))*($B7<=Tantárgylista[BEFEJEZÉS IDŐPONTJA]),Tantárgylista[EGYEDI]),Tantárgylista[EGYEDI],0),2),0)","v":0}]
[null,"09:00:00",{"$f":"IFERROR(INDEX(Tantárgylista[],MATCH(SUMPRODUCT((Tantárgylista[NAP]=Órarend[[#Headers],[VASÁRNAP]])*(ROUNDDOWN($B8,10)>=ROUNDDOWN(Tantárgylista[KEZDÉS IDŐPONTJA],10))*($B8<=Tantárgylista[BEFEJEZÉS IDŐPONTJA]),Tantárgylista[EGYEDI]),Tantárgylista[EGYEDI],0),2),0)","v":0},{"$f":"IFERROR(INDEX(Tantárgylista[],MATCH(SUMPRODUCT((Tantárgylista[NAP]=Órarend[[#Headers],[HÉTFŐ]])*(ROUNDDOWN($B8,10)>=ROUNDDOWN(Tantárgylista[KEZDÉS IDŐPONTJA],10))*($B8<=Tantárgylista[BEFEJEZÉS IDŐPONTJA]),Tantárgylista[EGYEDI]),Tantárgylista[EGYEDI],0),2),0)","v":"MAT-113"},{"$f":"IFERROR(INDEX(Tantárgylista[],MATCH(SUMPRODUCT((Tantárgylista[NAP]=Órarend[[#Headers],[KEDD]])*(ROUNDDOWN($B8,10)>=ROUNDDOWN(Tantárgylista[KEZDÉS IDŐPONTJA],10))*($B8<=Tantárgylista[BEFEJEZÉS IDŐPONTJA]),Tantárgylista[EGYEDI]),Tantárgylista[EGYEDI],0),2),0)","v":0},{"$f":"IFERROR(INDEX(Tantárgylista[],MATCH(SUMPRODUCT((Tantárgylista[NAP]=Órarend[[#Headers],[SZERDA]])*(ROUNDDOWN($B8,10)>=ROUNDDOWN(Tantárgylista[KEZDÉS IDŐPONTJA],10))*($B8<=Tantárgylista[BEFEJEZÉS IDŐPONTJA]),Tantárgylista[EGYEDI]),Tantárgylista[EGYEDI],0),2),0)","v":"MAT-113"},{"$f":"IFERROR(INDEX(Tantárgylista[],MATCH(SUMPRODUCT((Tantárgylista[NAP]=Órarend[[#Headers],[CSÜTÖRTÖK]])*(ROUNDDOWN($B8,10)>=ROUNDDOWN(Tantárgylista[KEZDÉS IDŐPONTJA],10))*($B8<=Tantárgylista[BEFEJEZÉS IDŐPONTJA]),Tantárgylista[EGYEDI]),Tantárgylista[EGYEDI],0),2),0)","v":0},{"$f":"IFERROR(INDEX(Tantárgylista[],MATCH(SUMPRODUCT((Tantárgylista[NAP]=Órarend[[#Headers],[PÉNTEK]])*(ROUNDDOWN($B8,10)>=ROUNDDOWN(Tantárgylista[KEZDÉS IDŐPONTJA],10))*($B8<=Tantárgylista[BEFEJEZÉS IDŐPONTJA]),Tantárgylista[EGYEDI]),Tantárgylista[EGYEDI],0),2),0)","v":"MAT-113"},{"$f":"IFERROR(INDEX(Tantárgylista[],MATCH(SUMPRODUCT((Tantárgylista[NAP]=Órarend[[#Headers],[SZOMBAT]])*(ROUNDDOWN($B8,10)>=ROUNDDOWN(Tantárgylista[KEZDÉS IDŐPONTJA],10))*($B8<=Tantárgylista[BEFEJEZÉS IDŐPONTJA]),Tantárgylista[EGYEDI]),Tantárgylista[EGYEDI],0),2),0)","v":0}]
[null,"09:15:00",{"$f":"IFERROR(INDEX(Tantárgylista[],MATCH(SUMPRODUCT((Tantárgylista[NAP]=Órarend[[#Headers],[VASÁRNAP]])*(ROUNDDOWN($B9,10)>=ROUNDDOWN(Tantárgylista[KEZDÉS IDŐPONTJA],10))*($B9<=Tantárgylista[BEFEJEZÉS IDŐPONTJA]),Tantárgylista[EGYEDI]),Tantárgylista[EGYEDI],0),2),0)","v":0},{"$f":"IFERROR(INDEX(Tantárgylista[],MATCH(SUMPRODUCT((Tantárgylista[NAP]=Órarend[[#Headers],[HÉTFŐ]])*(ROUNDDOWN($B9,10)>=ROUNDDOWN(Tantárgylista[KEZDÉS IDŐPONTJA],10))*($B9<=Tantárgylista[BEFEJEZÉS IDŐPONTJA]),Tantárgylista[EGYEDI]),Tantárgylista[EGYEDI],0),2),0)","v":"MAT-113"},{"$f":"IFERROR(INDEX(Tantárgylista[],MATCH(SUMPRODUCT((Tantárgylista[NAP]=Órarend[[#Headers],[KEDD]])*(ROUNDDOWN($B9,10)>=ROUNDDOWN(Tantárgylista[KEZDÉS IDŐPONTJA],10))*($B9<=Tantárgylista[BEFEJEZÉS IDŐPONTJA]),Tantárgylista[EGYEDI]),Tantárgylista[EGYEDI],0),2),0)","v":0},{"$f":"IFERROR(INDEX(Tantárgylista[],MATCH(SUMPRODUCT((Tantárgylista[NAP]=Órarend[[#Headers],[SZERDA]])*(ROUNDDOWN($B9,10)>=ROUNDDOWN(Tantárgylista[KEZDÉS IDŐPONTJA],10))*($B9<=Tantárgylista[BEFEJEZÉS IDŐPONTJA]),Tantárgylista[EGYEDI]),Tantárgylista[EGYEDI],0),2),0)","v":"MAT-113"},{"$f":"IFERROR(INDEX(Tantárgylista[],MATCH(SUMPRODUCT((Tantárgylista[NAP]=Órarend[[#Headers],[CSÜTÖRTÖK]])*(ROUNDDOWN($B9,10)>=ROUNDDOWN(Tantárgylista[KEZDÉS IDŐPONTJA],10))*($B9<=Tantárgylista[BEFEJEZÉS IDŐPONTJA]),Tantárgylista[EGYEDI]),Tantárgylista[EGYEDI],0),2),0)","v":0},{"$f":"IFERROR(INDEX(Tantárgylista[],MATCH(SUMPRODUCT((Tantárgylista[NAP]=Órarend[[#Headers],[PÉNTEK]])*(ROUNDDOWN($B9,10)>=ROUNDDOWN(Tantárgylista[KEZDÉS IDŐPONTJA],10))*($B9<=Tantárgylista[BEFEJEZÉS IDŐPONTJA]),Tantárgylista[EGYEDI]),Tantárgylista[EGYEDI],0),2),0)","v":"MAT-113"},{"$f":"IFERROR(INDEX(Tantárgylista[],MATCH(SUMPRODUCT((Tantárgylista[NAP]=Órarend[[#Headers],[SZOMBAT]])*(ROUNDDOWN($B9,10)>=ROUNDDOWN(Tantárgylista[KEZDÉS IDŐPONTJA],10))*($B9<=Tantárgylista[BEFEJEZÉS IDŐPONTJA]),Tantárgylista[EGYEDI]),Tantárgylista[EGYEDI],0),2),0)","v":0}]
[null,"09:30:00",{"$f":"IFERROR(INDEX(Tantárgylista[],MATCH(SUMPRODUCT((Tantárgylista[NAP]=Órarend[[#Headers],[VASÁRNAP]])*(ROUNDDOWN($B10,10)>=ROUNDDOWN(Tantárgylista[KEZDÉS IDŐPONTJA],10))*($B10<=Tantárgylista[BEFEJEZÉS IDŐPONTJA]),Tantárgylista[EGYEDI]),Tantárgylista[EGYEDI],0),2),0)","v":0},{"$f":"IFERROR(INDEX(Tantárgylista[],MATCH(SUMPRODUCT((Tantárgylista[NAP]=Órarend[[#Headers],[HÉTFŐ]])*(ROUNDDOWN($B10,10)>=ROUNDDOWN(Tantárgylista[KEZDÉS IDŐPONTJA],10))*($B10<=Tantárgylista[BEFEJEZÉS IDŐPONTJA]),Tantárgylista[EGYEDI]),Tantárgylista[EGYEDI],0),2),0)","v":0},{"$f":"IFERROR(INDEX(Tantárgylista[],MATCH(SUMPRODUCT((Tantárgylista[NAP]=Órarend[[#Headers],[KEDD]])*(ROUNDDOWN($B10,10)>=ROUNDDOWN(Tantárgylista[KEZDÉS IDŐPONTJA],10))*($B10<=Tantárgylista[BEFEJEZÉS IDŐPONTJA]),Tantárgylista[EGYEDI]),Tantárgylista[EGYEDI],0),2),0)","v":0},{"$f":"IFERROR(INDEX(Tantárgylista[],MATCH(SUMPRODUCT((Tantárgylista[NAP]=Órarend[[#Headers],[SZERDA]])*(ROUNDDOWN($B10,10)>=ROUNDDOWN(Tantárgylista[KEZDÉS IDŐPONTJA],10))*($B10<=Tantárgylista[BEFEJEZÉS IDŐPONTJA]),Tantárgylista[EGYEDI]),Tantárgylista[EGYEDI],0),2),0)","v":0},{"$f":"IFERROR(INDEX(Tantárgylista[],MATCH(SUMPRODUCT((Tantárgylista[NAP]=Órarend[[#Headers],[CSÜTÖRTÖK]])*(ROUNDDOWN($B10,10)>=ROUNDDOWN(Tantárgylista[KEZDÉS IDŐPONTJA],10))*($B10<=Tantárgylista[BEFEJEZÉS IDŐPONTJA]),Tantárgylista[EGYEDI]),Tantárgylista[EGYEDI],0),2),0)","v":0},{"$f":"IFERROR(INDEX(Tantárgylista[],MATCH(SUMPRODUCT((Tantárgylista[NAP]=Órarend[[#Headers],[PÉNTEK]])*(ROUNDDOWN($B10,10)>=ROUNDDOWN(Tantárgylista[KEZDÉS IDŐPONTJA],10))*($B10<=Tantárgylista[BEFEJEZÉS IDŐPONTJA]),Tantárgylista[EGYEDI]),Tantárgylista[EGYEDI],0),2),0)","v":0},{"$f":"IFERROR(INDEX(Tantárgylista[],MATCH(SUMPRODUCT((Tantárgylista[NAP]=Órarend[[#Headers],[SZOMBAT]])*(ROUNDDOWN($B10,10)>=ROUNDDOWN(Tantárgylista[KEZDÉS IDŐPONTJA],10))*($B10<=Tantárgylista[BEFEJEZÉS IDŐPONTJA]),Tantárgylista[EGYEDI]),Tantárgylista[EGYEDI],0),2),0)","v":0}]
[null,"09:45:00",{"$f":"IFERROR(INDEX(Tantárgylista[],MATCH(SUMPRODUCT((Tantárgylista[NAP]=Órarend[[#Headers],[VASÁRNAP]])*(ROUNDDOWN($B11,10)>=ROUNDDOWN(Tantárgylista[KEZDÉS IDŐPONTJA],10))*($B11<=Tantárgylista[BEFEJEZÉS IDŐPONTJA]),Tantárgylista[EGYEDI]),Tantárgylista[EGYEDI],0),2),0)","v":0},{"$f":"IFERROR(INDEX(Tantárgylista[],MATCH(SUMPRODUCT((Tantárgylista[NAP]=Órarend[[#Headers],[HÉTFŐ]])*(ROUNDDOWN($B11,10)>=ROUNDDOWN(Tantárgylista[KEZDÉS IDŐPONTJA],10))*($B11<=Tantárgylista[BEFEJEZÉS IDŐPONTJA]),Tantárgylista[EGYEDI]),Tantárgylista[EGYEDI],0),2),0)","v":0},{"$f":"IFERROR(INDEX(Tantárgylista[],MATCH(SUMPRODUCT((Tantárgylista[NAP]=Órarend[[#Headers],[KEDD]])*(ROUNDDOWN($B11,10)>=ROUNDDOWN(Tantárgylista[KEZDÉS IDŐPONTJA],10))*($B11<=Tantárgylista[BEFEJEZÉS IDŐPONTJA]),Tantárgylista[EGYEDI]),Tantárgylista[EGYEDI],0),2),0)","v":0},{"$f":"IFERROR(INDEX(Tantárgylista[],MATCH(SUMPRODUCT((Tantárgylista[NAP]=Órarend[[#Headers],[SZERDA]])*(ROUNDDOWN($B11,10)>=ROUNDDOWN(Tantárgylista[KEZDÉS IDŐPONTJA],10))*($B11<=Tantárgylista[BEFEJEZÉS IDŐPONTJA]),Tantárgylista[EGYEDI]),Tantárgylista[EGYEDI],0),2),0)","v":0},{"$f":"IFERROR(INDEX(Tantárgylista[],MATCH(SUMPRODUCT((Tantárgylista[NAP]=Órarend[[#Headers],[CSÜTÖRTÖK]])*(ROUNDDOWN($B11,10)>=ROUNDDOWN(Tantárgylista[KEZDÉS IDŐPONTJA],10))*($B11<=Tantárgylista[BEFEJEZÉS IDŐPONTJA]),Tantárgylista[EGYEDI]),Tantárgylista[EGYEDI],0),2),0)","v":0},{"$f":"IFERROR(INDEX(Tantárgylista[],MATCH(SUMPRODUCT((Tantárgylista[NAP]=Órarend[[#Headers],[PÉNTEK]])*(ROUNDDOWN($B11,10)>=ROUNDDOWN(Tantárgylista[KEZDÉS IDŐPONTJA],10))*($B11<=Tantárgylista[BEFEJEZÉS IDŐPONTJA]),Tantárgylista[EGYEDI]),Tantárgylista[EGYEDI],0),2),0)","v":0},{"$f":"IFERROR(INDEX(Tantárgylista[],MATCH(SUMPRODUCT((Tantárgylista[NAP]=Órarend[[#Headers],[SZOMBAT]])*(ROUNDDOWN($B11,10)>=ROUNDDOWN(Tantárgylista[KEZDÉS IDŐPONTJA],10))*($B11<=Tantárgylista[BEFEJEZÉS IDŐPONTJA]),Tantárgylista[EGYEDI]),Tantárgylista[EGYEDI],0),2),0)","v":0}]
[null,"10:00:00",{"$f":"IFERROR(INDEX(Tantárgylista[],MATCH(SUMPRODUCT((Tantárgylista[NAP]=Órarend[[#Headers],[VASÁRNAP]])*(ROUNDDOWN($B12,10)>=ROUNDDOWN(Tantárgylista[KEZDÉS IDŐPONTJA],10))*($B12<=Tantárgylista[BEFEJEZÉS IDŐPONTJA]),Tantárgylista[EGYEDI]),Tantárgylista[EGYEDI],0),2),0)","v":0},{"$f":"IFERROR(INDEX(Tantárgylista[],MATCH(SUMPRODUCT((Tantárgylista[NAP]=Órarend[[#Headers],[HÉTFŐ]])*(ROUNDDOWN($B12,10)>=ROUNDDOWN(Tantárgylista[KEZDÉS IDŐPONTJA],10))*($B12<=Tantárgylista[BEFEJEZÉS IDŐPONTJA]),Tantárgylista[EGYEDI]),Tantárgylista[EGYEDI],0),2),0)","v":0},{"$f":"IFERROR(INDEX(Tantárgylista[],MATCH(SUMPRODUCT((Tantárgylista[NAP]=Órarend[[#Headers],[KEDD]])*(ROUNDDOWN($B12,10)>=ROUNDDOWN(Tantárgylista[KEZDÉS IDŐPONTJA],10))*($B12<=Tantárgylista[BEFEJEZÉS IDŐPONTJA]),Tantárgylista[EGYEDI]),Tantárgylista[EGYEDI],0),2),0)","v":0},{"$f":"IFERROR(INDEX(Tantárgylista[],MATCH(SUMPRODUCT((Tantárgylista[NAP]=Órarend[[#Headers],[SZERDA]])*(ROUNDDOWN($B12,10)>=ROUNDDOWN(Tantárgylista[KEZDÉS IDŐPONTJA],10))*($B12<=Tantárgylista[BEFEJEZÉS IDŐPONTJA]),Tantárgylista[EGYEDI]),Tantárgylista[EGYEDI],0),2),0)","v":0},{"$f":"IFERROR(INDEX(Tantárgylista[],MATCH(SUMPRODUCT((Tantárgylista[NAP]=Órarend[[#Headers],[CSÜTÖRTÖK]])*(ROUNDDOWN($B12,10)>=ROUNDDOWN(Tantárgylista[KEZDÉS IDŐPONTJA],10))*($B12<=Tantárgylista[BEFEJEZÉS IDŐPONTJA]),Tantárgylista[EGYEDI]),Tantárgylista[EGYEDI],0),2),0)","v":0},{"$f":"IFERROR(INDEX(Tantárgylista[],MATCH(SUMPRODUCT((Tantárgylista[NAP]=Órarend[[#Headers],[PÉNTEK]])*(ROUNDDOWN($B12,10)>=ROUNDDOWN(Tantárgylista[KEZDÉS IDŐPONTJA],10))*($B12<=Tantárgylista[BEFEJEZÉS IDŐPONTJA]),Tantárgylista[EGYEDI]),Tantárgylista[EGYEDI],0),2),0)","v":0},{"$f":"IFERROR(INDEX(Tantárgylista[],MATCH(SUMPRODUCT((Tantárgylista[NAP]=Órarend[[#Headers],[SZOMBAT]])*(ROUNDDOWN($B12,10)>=ROUNDDOWN(Tantárgylista[KEZDÉS IDŐPONTJA],10))*($B12<=Tantárgylista[BEFEJEZÉS IDŐPONTJA]),Tantárgylista[EGYEDI]),Tantárgylista[EGYEDI],0),2),0)","v":0}]
[null,"10:15:00",{"$f":"IFERROR(INDEX(Tantárgylista[],MATCH(SUMPRODUCT((Tantárgylista[NAP]=Órarend[[#Headers],[VASÁRNAP]])*(ROUNDDOWN($B13,10)>=ROUNDDOWN(Tantárgylista[KEZDÉS IDŐPONTJA],10))*($B13<=Tantárgylista[BEFEJEZÉS IDŐPONTJA]),Tantárgylista[EGYEDI]),Tantárgylista[EGYEDI],0),2),0)","v":0},{"$f":"IFERROR(INDEX(Tantárgylista[],MATCH(SUMPRODUCT((Tantárgylista[NAP]=Órarend[[#Headers],[HÉTFŐ]])*(ROUNDDOWN($B13,10)>=ROUNDDOWN(Tantárgylista[KEZDÉS IDŐPONTJA],10))*($B13<=Tantárgylista[BEFEJEZÉS IDŐPONTJA]),Tantárgylista[EGYEDI]),Tantárgylista[EGYEDI],0),2),0)","v":0},{"$f":"IFERROR(INDEX(Tantárgylista[],MATCH(SUMPRODUCT((Tantárgylista[NAP]=Órarend[[#Headers],[KEDD]])*(ROUNDDOWN($B13,10)>=ROUNDDOWN(Tantárgylista[KEZDÉS IDŐPONTJA],10))*($B13<=Tantárgylista[BEFEJEZÉS IDŐPONTJA]),Tantárgylista[EGYEDI]),Tantárgylista[EGYEDI],0),2),0)","v":0},{"$f":"IFERROR(INDEX(Tantárgylista[],MATCH(SUMPRODUCT((Tantárgylista[NAP]=Órarend[[#Headers],[SZERDA]])*(ROUNDDOWN($B13,10)>=ROUNDDOWN(Tantárgylista[KEZDÉS IDŐPONTJA],10))*($B13<=Tantárgylista[BEFEJEZÉS IDŐPONTJA]),Tantárgylista[EGYEDI]),Tantárgylista[EGYEDI],0),2),0)","v":0},{"$f":"IFERROR(INDEX(Tantárgylista[],MATCH(SUMPRODUCT((Tantárgylista[NAP]=Órarend[[#Headers],[CSÜTÖRTÖK]])*(ROUNDDOWN($B13,10)>=ROUNDDOWN(Tantárgylista[KEZDÉS IDŐPONTJA],10))*($B13<=Tantárgylista[BEFEJEZÉS IDŐPONTJA]),Tantárgylista[EGYEDI]),Tantárgylista[EGYEDI],0),2),0)","v":0},{"$f":"IFERROR(INDEX(Tantárgylista[],MATCH(SUMPRODUCT((Tantárgylista[NAP]=Órarend[[#Headers],[PÉNTEK]])*(ROUNDDOWN($B13,10)>=ROUNDDOWN(Tantárgylista[KEZDÉS IDŐPONTJA],10))*($B13<=Tantárgylista[BEFEJEZÉS IDŐPONTJA]),Tantárgylista[EGYEDI]),Tantárgylista[EGYEDI],0),2),0)","v":0},{"$f":"IFERROR(INDEX(Tantárgylista[],MATCH(SUMPRODUCT((Tantárgylista[NAP]=Órarend[[#Headers],[SZOMBAT]])*(ROUNDDOWN($B13,10)>=ROUNDDOWN(Tantárgylista[KEZDÉS IDŐPONTJA],10))*($B13<=Tantárgylista[BEFEJEZÉS IDŐPONTJA]),Tantárgylista[EGYEDI]),Tantárgylista[EGYEDI],0),2),0)","v":0}]
[null,"10:30:00",{"$f":"IFERROR(INDEX(Tantárgylista[],MATCH(SUMPRODUCT((Tantárgylista[NAP]=Órarend[[#Headers],[VASÁRNAP]])*(ROUNDDOWN($B14,10)>=ROUNDDOWN(Tantárgylista[KEZDÉS IDŐPONTJA],10))*($B14<=Tantárgylista[BEFEJEZÉS IDŐPONTJA]),Tantárgylista[EGYEDI]),Tantárgylista[EGYEDI],0),2),0)","v":0},{"$f":"IFERROR(INDEX(Tantárgylista[],MATCH(SUMPRODUCT((Tantárgylista[NAP]=Órarend[[#Headers],[HÉTFŐ]])*(ROUNDDOWN($B14,10)>=ROUNDDOWN(Tantárgylista[KEZDÉS IDŐPONTJA],10))*($B14<=Tantárgylista[BEFEJEZÉS IDŐPONTJA]),Tantárgylista[EGYEDI]),Tantárgylista[EGYEDI],0),2),0)","v":0},{"$f":"IFERROR(INDEX(Tantárgylista[],MATCH(SUMPRODUCT((Tantárgylista[NAP]=Órarend[[#Headers],[KEDD]])*(ROUNDDOWN($B14,10)>=ROUNDDOWN(Tantárgylista[KEZDÉS IDŐPONTJA],10))*($B14<=Tantárgylista[BEFEJEZÉS IDŐPONTJA]),Tantárgylista[EGYEDI]),Tantárgylista[EGYEDI],0),2),0)","v":0},{"$f":"IFERROR(INDEX(Tantárgylista[],MATCH(SUMPRODUCT((Tantárgylista[NAP]=Órarend[[#Headers],[SZERDA]])*(ROUNDDOWN($B14,10)>=ROUNDDOWN(Tantárgylista[KEZDÉS IDŐPONTJA],10))*($B14<=Tantárgylista[BEFEJEZÉS IDŐPONTJA]),Tantárgylista[EGYEDI]),Tantárgylista[EGYEDI],0),2),0)","v":0},{"$f":"IFERROR(INDEX(Tantárgylista[],MATCH(SUMPRODUCT((Tantárgylista[NAP]=Órarend[[#Headers],[CSÜTÖRTÖK]])*(ROUNDDOWN($B14,10)>=ROUNDDOWN(Tantárgylista[KEZDÉS IDŐPONTJA],10))*($B14<=Tantárgylista[BEFEJEZÉS IDŐPONTJA]),Tantárgylista[EGYEDI]),Tantárgylista[EGYEDI],0),2),0)","v":0},{"$f":"IFERROR(INDEX(Tantárgylista[],MATCH(SUMPRODUCT((Tantárgylista[NAP]=Órarend[[#Headers],[PÉNTEK]])*(ROUNDDOWN($B14,10)>=ROUNDDOWN(Tantárgylista[KEZDÉS IDŐPONTJA],10))*($B14<=Tantárgylista[BEFEJEZÉS IDŐPONTJA]),Tantárgylista[EGYEDI]),Tantárgylista[EGYEDI],0),2),0)","v":0},{"$f":"IFERROR(INDEX(Tantárgylista[],MATCH(SUMPRODUCT((Tantárgylista[NAP]=Órarend[[#Headers],[SZOMBAT]])*(ROUNDDOWN($B14,10)>=ROUNDDOWN(Tantárgylista[KEZDÉS IDŐPONTJA],10))*($B14<=Tantárgylista[BEFEJEZÉS IDŐPONTJA]),Tantárgylista[EGYEDI]),Tantárgylista[EGYEDI],0),2),0)","v":0}]
[null,"10:45:00",{"$f":"IFERROR(INDEX(Tantárgylista[],MATCH(SUMPRODUCT((Tantárgylista[NAP]=Órarend[[#Headers],[VASÁRNAP]])*(ROUNDDOWN($B15,10)>=ROUNDDOWN(Tantárgylista[KEZDÉS IDŐPONTJA],10))*($B15<=Tantárgylista[BEFEJEZÉS IDŐPONTJA]),Tantárgylista[EGYEDI]),Tantárgylista[EGYEDI],0),2),0)","v":0},{"$f":"IFERROR(INDEX(Tantárgylista[],MATCH(SUMPRODUCT((Tantárgylista[NAP]=Órarend[[#Headers],[HÉTFŐ]])*(ROUNDDOWN($B15,10)>=ROUNDDOWN(Tantárgylista[KEZDÉS IDŐPONTJA],10))*($B15<=Tantárgylista[BEFEJEZÉS IDŐPONTJA]),Tantárgylista[EGYEDI]),Tantárgylista[EGYEDI],0),2),0)","v":0},{"$f":"IFERROR(INDEX(Tantárgylista[],MATCH(SUMPRODUCT((Tantárgylista[NAP]=Órarend[[#Headers],[KEDD]])*(ROUNDDOWN($B15,10)>=ROUNDDOWN(Tantárgylista[KEZDÉS IDŐPONTJA],10))*($B15<=Tantárgylista[BEFEJEZÉS IDŐPONTJA]),Tantárgylista[EGYEDI]),Tantárgylista[EGYEDI],0),2),0)","v":0},{"$f":"IFERROR(INDEX(Tantárgylista[],MATCH(SUMPRODUCT((Tantárgylista[NAP]=Órarend[[#Headers],[SZERDA]])*(ROUNDDOWN($B15,10)>=ROUNDDOWN(Tantárgylista[KEZDÉS IDŐPONTJA],10))*($B15<=Tantárgylista[BEFEJEZÉS IDŐPONTJA]),Tantárgylista[EGYEDI]),Tantárgylista[EGYEDI],0),2),0)","v":0},{"$f":"IFERROR(INDEX(Tantárgylista[],MATCH(SUMPRODUCT((Tantárgylista[NAP]=Órarend[[#Headers],[CSÜTÖRTÖK]])*(ROUNDDOWN($B15,10)>=ROUNDDOWN(Tantárgylista[KEZDÉS IDŐPONTJA],10))*($B15<=Tantárgylista[BEFEJEZÉS IDŐPONTJA]),Tantárgylista[EGYEDI]),Tantárgylista[EGYEDI],0),2),0)","v":0},{"$f":"IFERROR(INDEX(Tantárgylista[],MATCH(SUMPRODUCT((Tantárgylista[NAP]=Órarend[[#Headers],[PÉNTEK]])*(ROUNDDOWN($B15,10)>=ROUNDDOWN(Tantárgylista[KEZDÉS IDŐPONTJA],10))*($B15<=Tantárgylista[BEFEJEZÉS IDŐPONTJA]),Tantárgylista[EGYEDI]),Tantárgylista[EGYEDI],0),2),0)","v":0},{"$f":"IFERROR(INDEX(Tantárgylista[],MATCH(SUMPRODUCT((Tantárgylista[NAP]=Órarend[[#Headers],[SZOMBAT]])*(ROUNDDOWN($B15,10)>=ROUNDDOWN(Tantárgylista[KEZDÉS IDŐPONTJA],10))*($B15<=Tantárgylista[BEFEJEZÉS IDŐPONTJA]),Tantárgylista[EGYEDI]),Tantárgylista[EGYEDI],0),2),0)","v":0}]
[null,"11:00:00",{"$f":"IFERROR(INDEX(Tantárgylista[],MATCH(SUMPRODUCT((Tantárgylista[NAP]=Órarend[[#Headers],[VASÁRNAP]])*(ROUNDDOWN($B16,10)>=ROUNDDOWN(Tantárgylista[KEZDÉS IDŐPONTJA],10))*($B16<=Tantárgylista[BEFEJEZÉS IDŐPONTJA]),Tantárgylista[EGYEDI]),Tantárgylista[EGYEDI],0),2),0)","v":0},{"$f":"IFERROR(INDEX(Tantárgylista[],MATCH(SUMPRODUCT((Tantárgylista[NAP]=Órarend[[#Headers],[HÉTFŐ]])*(ROUNDDOWN($B16,10)>=ROUNDDOWN(Tantárgylista[KEZDÉS IDŐPONTJA],10))*($B16<=Tantárgylista[BEFEJEZÉS IDŐPONTJA]),Tantárgylista[EGYEDI]),Tantárgylista[EGYEDI],0),2),0)","v":0},{"$f":"IFERROR(INDEX(Tantárgylista[],MATCH(SUMPRODUCT((Tantárgylista[NAP]=Órarend[[#Headers],[KEDD]])*(ROUNDDOWN($B16,10)>=ROUNDDOWN(Tantárgylista[KEZDÉS IDŐPONTJA],10))*($B16<=Tantárgylista[BEFEJEZÉS IDŐPONTJA]),Tantárgylista[EGYEDI]),Tantárgylista[EGYEDI],0),2),0)","v":"EE-295"},{"$f":"IFERROR(INDEX(Tantárgylista[],MATCH(SUMPRODUCT((Tantárgylista[NAP]=Órarend[[#Headers],[SZERDA]])*(ROUNDDOWN($B16,10)>=ROUNDDOWN(Tantárgylista[KEZDÉS IDŐPONTJA],10))*($B16<=Tantárgylista[BEFEJEZÉS IDŐPONTJA]),Tantárgylista[EGYEDI]),Tantárgylista[EGYEDI],0),2),0)","v":0},{"$f":"IFERROR(INDEX(Tantárgylista[],MATCH(SUMPRODUCT((Tantárgylista[NAP]=Órarend[[#Headers],[CSÜTÖRTÖK]])*(ROUNDDOWN($B16,10)>=ROUNDDOWN(Tantárgylista[KEZDÉS IDŐPONTJA],10))*($B16<=Tantárgylista[BEFEJEZÉS IDŐPONTJA]),Tantárgylista[EGYEDI]),Tantárgylista[EGYEDI],0),2),0)","v":"EE-295"},{"$f":"IFERROR(INDEX(Tantárgylista[],MATCH(SUMPRODUCT((Tantárgylista[NAP]=Órarend[[#Headers],[PÉNTEK]])*(ROUNDDOWN($B16,10)>=ROUNDDOWN(Tantárgylista[KEZDÉS IDŐPONTJA],10))*($B16<=Tantárgylista[BEFEJEZÉS IDŐPONTJA]),Tantárgylista[EGYEDI]),Tantárgylista[EGYEDI],0),2),0)","v":0},{"$f":"IFERROR(INDEX(Tantárgylista[],MATCH(SUMPRODUCT((Tantárgylista[NAP]=Órarend[[#Headers],[SZOMBAT]])*(ROUNDDOWN($B16,10)>=ROUNDDOWN(Tantárgylista[KEZDÉS IDŐPONTJA],10))*($B16<=Tantárgylista[BEFEJEZÉS IDŐPONTJA]),Tantárgylista[EGYEDI]),Tantárgylista[EGYEDI],0),2),0)","v":0}]
[null,"11:15:00",{"$f":"IFERROR(INDEX(Tantárgylista[],MATCH(SUMPRODUCT((Tantárgylista[NAP]=Órarend[[#Headers],[VASÁRNAP]])*(ROUNDDOWN($B17,10)>=ROUNDDOWN(Tantárgylista[KEZDÉS IDŐPONTJA],10))*($B17<=Tantárgylista[BEFEJEZÉS IDŐPONTJA]),Tantárgylista[EGYEDI]),Tantárgylista[EGYEDI],0),2),0)","v":0},{"$f":"IFERROR(INDEX(Tantárgylista[],MATCH(SUMPRODUCT((Tantárgylista[NAP]=Órarend[[#Headers],[HÉTFŐ]])*(ROUNDDOWN($B17,10)>=ROUNDDOWN(Tantárgylista[KEZDÉS IDŐPONTJA],10))*($B17<=Tantárgylista[BEFEJEZÉS IDŐPONTJA]),Tantárgylista[EGYEDI]),Tantárgylista[EGYEDI],0),2),0)","v":0},{"$f":"IFERROR(INDEX(Tantárgylista[],MATCH(SUMPRODUCT((Tantárgylista[NAP]=Órarend[[#Headers],[KEDD]])*(ROUNDDOWN($B17,10)>=ROUNDDOWN(Tantárgylista[KEZDÉS IDŐPONTJA],10))*($B17<=Tantárgylista[BEFEJEZÉS IDŐPONTJA]),Tantárgylista[EGYEDI]),Tantárgylista[EGYEDI],0),2),0)","v":"EE-295"},{"$f":"IFERROR(INDEX(Tantárgylista[],MATCH(SUMPRODUCT((Tantárgylista[NAP]=Órarend[[#Headers],[SZERDA]])*(ROUNDDOWN($B17,10)>=ROUNDDOWN(Tantárgylista[KEZDÉS IDŐPONTJA],10))*($B17<=Tantárgylista[BEFEJEZÉS IDŐPONTJA]),Tantárgylista[EGYEDI]),Tantárgylista[EGYEDI],0),2),0)","v":0},{"$f":"IFERROR(INDEX(Tantárgylista[],MATCH(SUMPRODUCT((Tantárgylista[NAP]=Órarend[[#Headers],[CSÜTÖRTÖK]])*(ROUNDDOWN($B17,10)>=ROUNDDOWN(Tantárgylista[KEZDÉS IDŐPONTJA],10))*($B17<=Tantárgylista[BEFEJEZÉS IDŐPONTJA]),Tantárgylista[EGYEDI]),Tantárgylista[EGYEDI],0),2),0)","v":"EE-295"},{"$f":"IFERROR(INDEX(Tantárgylista[],MATCH(SUMPRODUCT((Tantárgylista[NAP]=Órarend[[#Headers],[PÉNTEK]])*(ROUNDDOWN($B17,10)>=ROUNDDOWN(Tantárgylista[KEZDÉS IDŐPONTJA],10))*($B17<=Tantárgylista[BEFEJEZÉS IDŐPONTJA]),Tantárgylista[EGYEDI]),Tantárgylista[EGYEDI],0),2),0)","v":0},{"$f":"IFERROR(INDEX(Tantárgylista[],MATCH(SUMPRODUCT((Tantárgylista[NAP]=Órarend[[#Headers],[SZOMBAT]])*(ROUNDDOWN($B17,10)>=ROUNDDOWN(Tantárgylista[KEZDÉS IDŐPONTJA],10))*($B17<=Tantárgylista[BEFEJEZÉS IDŐPONTJA]),Tantárgylista[EGYEDI]),Tantárgylista[EGYEDI],0),2),0)","v":0}]
[null,"11:30:00",{"$f":"IFERROR(INDEX(Tantárgylista[],MATCH(SUMPRODUCT((Tantárgylista[NAP]=Órarend[[#Headers],[VASÁRNAP]])*(ROUNDDOWN($B18,10)>=ROUNDDOWN(Tantárgylista[KEZDÉS IDŐPONTJA],10))*($B18<=Tantárgylista[BEFEJEZÉS IDŐPONTJA]),Tantárgylista[EGYEDI]),Tantárgylista[EGYEDI],0),2),0)","v":0},{"$f":"IFERROR(INDEX(Tantárgylista[],MATCH(SUMPRODUCT((Tantárgylista[NAP]=Órarend[[#Headers],[HÉTFŐ]])*(ROUNDDOWN($B18,10)>=ROUNDDOWN(Tantárgylista[KEZDÉS IDŐPONTJA],10))*($B18<=Tantárgylista[BEFEJEZÉS IDŐPONTJA]),Tantárgylista[EGYEDI]),Tantárgylista[EGYEDI],0),2),0)","v":0},{"$f":"IFERROR(INDEX(Tantárgylista[],MATCH(SUMPRODUCT((Tantárgylista[NAP]=Órarend[[#Headers],[KEDD]])*(ROUNDDOWN($B18,10)>=ROUNDDOWN(Tantárgylista[KEZDÉS IDŐPONTJA],10))*($B18<=Tantárgylista[BEFEJEZÉS IDŐPONTJA]),Tantárgylista[EGYEDI]),Tantárgylista[EGYEDI],0),2),0)","v":"EE-295"},{"$f":"IFERROR(INDEX(Tantárgylista[],MATCH(SUMPRODUCT((Tantárgylista[NAP]=Órarend[[#Headers],[SZERDA]])*(ROUNDDOWN($B18,10)>=ROUNDDOWN(Tantárgylista[KEZDÉS IDŐPONTJA],10))*($B18<=Tantárgylista[BEFEJEZÉS IDŐPONTJA]),Tantárgylista[EGYEDI]),Tantárgylista[EGYEDI],0),2),0)","v":0},{"$f":"IFERROR(INDEX(Tantárgylista[],MATCH(SUMPRODUCT((Tantárgylista[NAP]=Órarend[[#Headers],[CSÜTÖRTÖK]])*(ROUNDDOWN($B18,10)>=ROUNDDOWN(Tantárgylista[KEZDÉS IDŐPONTJA],10))*($B18<=Tantárgylista[BEFEJEZÉS IDŐPONTJA]),Tantárgylista[EGYEDI]),Tantárgylista[EGYEDI],0),2),0)","v":"EE-295"},{"$f":"IFERROR(INDEX(Tantárgylista[],MATCH(SUMPRODUCT((Tantárgylista[NAP]=Órarend[[#Headers],[PÉNTEK]])*(ROUNDDOWN($B18,10)>=ROUNDDOWN(Tantárgylista[KEZDÉS IDŐPONTJA],10))*($B18<=Tantárgylista[BEFEJEZÉS IDŐPONTJA]),Tantárgylista[EGYEDI]),Tantárgylista[EGYEDI],0),2),0)","v":0},{"$f":"IFERROR(INDEX(Tantárgylista[],MATCH(SUMPRODUCT((Tantárgylista[NAP]=Órarend[[#Headers],[SZOMBAT]])*(ROUNDDOWN($B18,10)>=ROUNDDOWN(Tantárgylista[KEZDÉS IDŐPONTJA],10))*($B18<=Tantárgylista[BEFEJEZÉS IDŐPONTJA]),Tantárgylista[EGYEDI]),Tantárgylista[EGYEDI],0),2),0)","v":0}]
[null,"11:45:00",{"$f":"IFERROR(INDEX(Tantárgylista[],MATCH(SUMPRODUCT((Tantárgylista[NAP]=Órarend[[#Headers],[VASÁRNAP]])*(ROUNDDOWN($B19,10)>=ROUNDDOWN(Tantárgylista[KEZDÉS IDŐPONTJA],10))*($B19<=Tantárgylista[BEFEJEZÉS IDŐPONTJA]),Tantárgylista[EGYEDI]),Tantárgylista[EGYEDI],0),2),0)","v":0},{"$f":"IFERROR(INDEX(Tantárgylista[],MATCH(SUMPRODUCT((Tantárgylista[NAP]=Órarend[[#Headers],[HÉTFŐ]])*(ROUNDDOWN($B19,10)>=ROUNDDOWN(Tantárgylista[KEZDÉS IDŐPONTJA],10))*($B19<=Tantárgylista[BEFEJEZÉS IDŐPONTJA]),Tantárgylista[EGYEDI]),Tantárgylista[EGYEDI],0),2),0)","v":0},{"$f":"IFERROR(INDEX(Tantárgylista[],MATCH(SUMPRODUCT((Tantárgylista[NAP]=Órarend[[#Headers],[KEDD]])*(ROUNDDOWN($B19,10)>=ROUNDDOWN(Tantárgylista[KEZDÉS IDŐPONTJA],10))*($B19<=Tantárgylista[BEFEJEZÉS IDŐPONTJA]),Tantárgylista[EGYEDI]),Tantárgylista[EGYEDI],0),2),0)","v":"EE-295"},{"$f":"IFERROR(INDEX(Tantárgylista[],MATCH(SUMPRODUCT((Tantárgylista[NAP]=Órarend[[#Headers],[SZERDA]])*(ROUNDDOWN($B19,10)>=ROUNDDOWN(Tantárgylista[KEZDÉS IDŐPONTJA],10))*($B19<=Tantárgylista[BEFEJEZÉS IDŐPONTJA]),Tantárgylista[EGYEDI]),Tantárgylista[EGYEDI],0),2),0)","v":0},{"$f":"IFERROR(INDEX(Tantárgylista[],MATCH(SUMPRODUCT((Tantárgylista[NAP]=Órarend[[#Headers],[CSÜTÖRTÖK]])*(ROUNDDOWN($B19,10)>=ROUNDDOWN(Tantárgylista[KEZDÉS IDŐPONTJA],10))*($B19<=Tantárgylista[BEFEJEZÉS IDŐPONTJA]),Tantárgylista[EGYEDI]),Tantárgylista[EGYEDI],0),2),0)","v":"EE-295"},{"$f":"IFERROR(INDEX(Tantárgylista[],MATCH(SUMPRODUCT((Tantárgylista[NAP]=Órarend[[#Headers],[PÉNTEK]])*(ROUNDDOWN($B19,10)>=ROUNDDOWN(Tantárgylista[KEZDÉS IDŐPONTJA],10))*($B19<=Tantárgylista[BEFEJEZÉS IDŐPONTJA]),Tantárgylista[EGYEDI]),Tantárgylista[EGYEDI],0),2),0)","v":0},{"$f":"IFERROR(INDEX(Tantárgylista[],MATCH(SUMPRODUCT((Tantárgylista[NAP]=Órarend[[#Headers],[SZOMBAT]])*(ROUNDDOWN($B19,10)>=ROUNDDOWN(Tantárgylista[KEZDÉS IDŐPONTJA],10))*($B19<=Tantárgylista[BEFEJEZÉS IDŐPONTJA]),Tantárgylista[EGYEDI]),Tantárgylista[EGYEDI],0),2),0)","v":0}]
[null,"12:00:00",{"$f":"IFERROR(INDEX(Tantárgylista[],MATCH(SUMPRODUCT((Tantárgylista[NAP]=Órarend[[#Headers],[VASÁRNAP]])*(ROUNDDOWN($B20,10)>=ROUNDDOWN(Tantárgylista[KEZDÉS IDŐPONTJA],10))*($B20<=Tantárgylista[BEFEJEZÉS IDŐPONTJA]),Tantárgylista[EGYEDI]),Tantárgylista[EGYEDI],0),2),0)","v":0},{"$f":"IFERROR(INDEX(Tantárgylista[],MATCH(SUMPRODUCT((Tantárgylista[NAP]=Órarend[[#Headers],[HÉTFŐ]])*(ROUNDDOWN($B20,10)>=ROUNDDOWN(Tantárgylista[KEZDÉS IDŐPONTJA],10))*($B20<=Tantárgylista[BEFEJEZÉS IDŐPONTJA]),Tantárgylista[EGYEDI]),Tantárgylista[EGYEDI],0),2),0)","v":0},{"$f":"IFERROR(INDEX(Tantárgylista[],MATCH(SUMPRODUCT((Tantárgylista[NAP]=Órarend[[#Headers],[KEDD]])*(ROUNDDOWN($B20,10)>=ROUNDDOWN(Tantárgylista[KEZDÉS IDŐPONTJA],10))*($B20<=Tantárgylista[BEFEJEZÉS IDŐPONTJA]),Tantárgylista[EGYEDI]),Tantárgylista[EGYEDI],0),2),0)","v":"EE-295"},{"$f":"IFERROR(INDEX(Tantárgylista[],MATCH(SUMPRODUCT((Tantárgylista[NAP]=Órarend[[#Headers],[SZERDA]])*(ROUNDDOWN($B20,10)>=ROUNDDOWN(Tantárgylista[KEZDÉS IDŐPONTJA],10))*($B20<=Tantárgylista[BEFEJEZÉS IDŐPONTJA]),Tantárgylista[EGYEDI]),Tantárgylista[EGYEDI],0),2),0)","v":0},{"$f":"IFERROR(INDEX(Tantárgylista[],MATCH(SUMPRODUCT((Tantárgylista[NAP]=Órarend[[#Headers],[CSÜTÖRTÖK]])*(ROUNDDOWN($B20,10)>=ROUNDDOWN(Tantárgylista[KEZDÉS IDŐPONTJA],10))*($B20<=Tantárgylista[BEFEJEZÉS IDŐPONTJA]),Tantárgylista[EGYEDI]),Tantárgylista[EGYEDI],0),2),0)","v":"EE-295"},{"$f":"IFERROR(INDEX(Tantárgylista[],MATCH(SUMPRODUCT((Tantárgylista[NAP]=Órarend[[#Headers],[PÉNTEK]])*(ROUNDDOWN($B20,10)>=ROUNDDOWN(Tantárgylista[KEZDÉS IDŐPONTJA],10))*($B20<=Tantárgylista[BEFEJEZÉS IDŐPONTJA]),Tantárgylista[EGYEDI]),Tantárgylista[EGYEDI],0),2),0)","v":0},{"$f":"IFERROR(INDEX(Tantárgylista[],MATCH(SUMPRODUCT((Tantárgylista[NAP]=Órarend[[#Headers],[SZOMBAT]])*(ROUNDDOWN($B20,10)>=ROUNDDOWN(Tantárgylista[KEZDÉS IDŐPONTJA],10))*($B20<=Tantárgylista[BEFEJEZÉS IDŐPONTJA]),Tantárgylista[EGYEDI]),Tantárgylista[EGYEDI],0),2),0)","v":0}]
[null,"12:15:00",{"$f":"IFERROR(INDEX(Tantárgylista[],MATCH(SUMPRODUCT((Tantárgylista[NAP]=Órarend[[#Headers],[VASÁRNAP]])*(ROUNDDOWN($B21,10)>=ROUNDDOWN(Tantárgylista[KEZDÉS IDŐPONTJA],10))*($B21<=Tantárgylista[BEFEJEZÉS IDŐPONTJA]),Tantárgylista[EGYEDI]),Tantárgylista[EGYEDI],0),2),0)","v":0},{"$f":"IFERROR(INDEX(Tantárgylista[],MATCH(SUMPRODUCT((Tantárgylista[NAP]=Órarend[[#Headers],[HÉTFŐ]])*(ROUNDDOWN($B21,10)>=ROUNDDOWN(Tantárgylista[KEZDÉS IDŐPONTJA],10))*($B21<=Tantárgylista[BEFEJEZÉS IDŐPONTJA]),Tantárgylista[EGYEDI]),Tantárgylista[EGYEDI],0),2),0)","v":0},{"$f":"IFERROR(INDEX(Tantárgylista[],MATCH(SUMPRODUCT((Tantárgylista[NAP]=Órarend[[#Headers],[KEDD]])*(ROUNDDOWN($B21,10)>=ROUNDDOWN(Tantárgylista[KEZDÉS IDŐPONTJA],10))*($B21<=Tantárgylista[BEFEJEZÉS IDŐPONTJA]),Tantárgylista[EGYEDI]),Tantárgylista[EGYEDI],0),2),0)","v":0},{"$f":"IFERROR(INDEX(Tantárgylista[],MATCH(SUMPRODUCT((Tantárgylista[NAP]=Órarend[[#Headers],[SZERDA]])*(ROUNDDOWN($B21,10)>=ROUNDDOWN(Tantárgylista[KEZDÉS IDŐPONTJA],10))*($B21<=Tantárgylista[BEFEJEZÉS IDŐPONTJA]),Tantárgylista[EGYEDI]),Tantárgylista[EGYEDI],0),2),0)","v":0},{"$f":"IFERROR(INDEX(Tantárgylista[],MATCH(SUMPRODUCT((Tantárgylista[NAP]=Órarend[[#Headers],[CSÜTÖRTÖK]])*(ROUNDDOWN($B21,10)>=ROUNDDOWN(Tantárgylista[KEZDÉS IDŐPONTJA],10))*($B21<=Tantárgylista[BEFEJEZÉS IDŐPONTJA]),Tantárgylista[EGYEDI]),Tantárgylista[EGYEDI],0),2),0)","v":0},{"$f":"IFERROR(INDEX(Tantárgylista[],MATCH(SUMPRODUCT((Tantárgylista[NAP]=Órarend[[#Headers],[PÉNTEK]])*(ROUNDDOWN($B21,10)>=ROUNDDOWN(Tantárgylista[KEZDÉS IDŐPONTJA],10))*($B21<=Tantárgylista[BEFEJEZÉS IDŐPONTJA]),Tantárgylista[EGYEDI]),Tantárgylista[EGYEDI],0),2),0)","v":0},{"$f":"IFERROR(INDEX(Tantárgylista[],MATCH(SUMPRODUCT((Tantárgylista[NAP]=Órarend[[#Headers],[SZOMBAT]])*(ROUNDDOWN($B21,10)>=ROUNDDOWN(Tantárgylista[KEZDÉS IDŐPONTJA],10))*($B21<=Tantárgylista[BEFEJEZÉS IDŐPONTJA]),Tantárgylista[EGYEDI]),Tantárgylista[EGYEDI],0),2),0)","v":0}]
[null,"12:30:00",{"$f":"IFERROR(INDEX(Tantárgylista[],MATCH(SUMPRODUCT((Tantárgylista[NAP]=Órarend[[#Headers],[VASÁRNAP]])*(ROUNDDOWN($B22,10)>=ROUNDDOWN(Tantárgylista[KEZDÉS IDŐPONTJA],10))*($B22<=Tantárgylista[BEFEJEZÉS IDŐPONTJA]),Tantárgylista[EGYEDI]),Tantárgylista[EGYEDI],0),2),0)","v":0},{"$f":"IFERROR(INDEX(Tantárgylista[],MATCH(SUMPRODUCT((Tantárgylista[NAP]=Órarend[[#Headers],[HÉTFŐ]])*(ROUNDDOWN($B22,10)>=ROUNDDOWN(Tantárgylista[KEZDÉS IDŐPONTJA],10))*($B22<=Tantárgylista[BEFEJEZÉS IDŐPONTJA]),Tantárgylista[EGYEDI]),Tantárgylista[EGYEDI],0),2),0)","v":0},{"$f":"IFERROR(INDEX(Tantárgylista[],MATCH(SUMPRODUCT((Tantárgylista[NAP]=Órarend[[#Headers],[KEDD]])*(ROUNDDOWN($B22,10)>=ROUNDDOWN(Tantárgylista[KEZDÉS IDŐPONTJA],10))*($B22<=Tantárgylista[BEFEJEZÉS IDŐPONTJA]),Tantárgylista[EGYEDI]),Tantárgylista[EGYEDI],0),2),0)","v":0},{"$f":"IFERROR(INDEX(Tantárgylista[],MATCH(SUMPRODUCT((Tantárgylista[NAP]=Órarend[[#Headers],[SZERDA]])*(ROUNDDOWN($B22,10)>=ROUNDDOWN(Tantárgylista[KEZDÉS IDŐPONTJA],10))*($B22<=Tantárgylista[BEFEJEZÉS IDŐPONTJA]),Tantárgylista[EGYEDI]),Tantárgylista[EGYEDI],0),2),0)","v":0},{"$f":"IFERROR(INDEX(Tantárgylista[],MATCH(SUMPRODUCT((Tantárgylista[NAP]=Órarend[[#Headers],[CSÜTÖRTÖK]])*(ROUNDDOWN($B22,10)>=ROUNDDOWN(Tantárgylista[KEZDÉS IDŐPONTJA],10))*($B22<=Tantárgylista[BEFEJEZÉS IDŐPONTJA]),Tantárgylista[EGYEDI]),Tantárgylista[EGYEDI],0),2),0)","v":0},{"$f":"IFERROR(INDEX(Tantárgylista[],MATCH(SUMPRODUCT((Tantárgylista[NAP]=Órarend[[#Headers],[PÉNTEK]])*(ROUNDDOWN($B22,10)>=ROUNDDOWN(Tantárgylista[KEZDÉS IDŐPONTJA],10))*($B22<=Tantárgylista[BEFEJEZÉS IDŐPONTJA]),Tantárgylista[EGYEDI]),Tantárgylista[EGYEDI],0),2),0)","v":0},{"$f":"IFERROR(INDEX(Tantárgylista[],MATCH(SUMPRODUCT((Tantárgylista[NAP]=Órarend[[#Headers],[SZOMBAT]])*(ROUNDDOWN($B22,10)>=ROUNDDOWN(Tantárgylista[KEZDÉS IDŐPONTJA],10))*($B22<=Tantárgylista[BEFEJEZÉS IDŐPONTJA]),Tantárgylista[EGYEDI]),Tantárgylista[EGYEDI],0),2),0)","v":0}]
[null,"12:45:00",{"$f":"IFERROR(INDEX(Tantárgylista[],MATCH(SUMPRODUCT((Tantárgylista[NAP]=Órarend[[#Headers],[VASÁRNAP]])*(ROUNDDOWN($B23,10)>=ROUNDDOWN(Tantárgylista[KEZDÉS IDŐPONTJA],10))*($B23<=Tantárgylista[BEFEJEZÉS IDŐPONTJA]),Tantárgylista[EGYEDI]),Tantárgylista[EGYEDI],0),2),0)","v":0},{"$f":"IFERROR(INDEX(Tantárgylista[],MATCH(SUMPRODUCT((Tantárgylista[NAP]=Órarend[[#Headers],[HÉTFŐ]])*(ROUNDDOWN($B23,10)>=ROUNDDOWN(Tantárgylista[KEZDÉS IDŐPONTJA],10))*($B23<=Tantárgylista[BEFEJEZÉS IDŐPONTJA]),Tantárgylista[EGYEDI]),Tantárgylista[EGYEDI],0),2),0)","v":0},{"$f":"IFERROR(INDEX(Tantárgylista[],MATCH(SUMPRODUCT((Tantárgylista[NAP]=Órarend[[#Headers],[KEDD]])*(ROUNDDOWN($B23,10)>=ROUNDDOWN(Tantárgylista[KEZDÉS IDŐPONTJA],10))*($B23<=Tantárgylista[BEFEJEZÉS IDŐPONTJA]),Tantárgylista[EGYEDI]),Tantárgylista[EGYEDI],0),2),0)","v":0},{"$f":"IFERROR(INDEX(Tantárgylista[],MATCH(SUMPRODUCT((Tantárgylista[NAP]=Órarend[[#Headers],[SZERDA]])*(ROUNDDOWN($B23,10)>=ROUNDDOWN(Tantárgylista[KEZDÉS IDŐPONTJA],10))*($B23<=Tantárgylista[BEFEJEZÉS IDŐPONTJA]),Tantárgylista[EGYEDI]),Tantárgylista[EGYEDI],0),2),0)","v":0},{"$f":"IFERROR(INDEX(Tantárgylista[],MATCH(SUMPRODUCT((Tantárgylista[NAP]=Órarend[[#Headers],[CSÜTÖRTÖK]])*(ROUNDDOWN($B23,10)>=ROUNDDOWN(Tantárgylista[KEZDÉS IDŐPONTJA],10))*($B23<=Tantárgylista[BEFEJEZÉS IDŐPONTJA]),Tantárgylista[EGYEDI]),Tantárgylista[EGYEDI],0),2),0)","v":0},{"$f":"IFERROR(INDEX(Tantárgylista[],MATCH(SUMPRODUCT((Tantárgylista[NAP]=Órarend[[#Headers],[PÉNTEK]])*(ROUNDDOWN($B23,10)>=ROUNDDOWN(Tantárgylista[KEZDÉS IDŐPONTJA],10))*($B23<=Tantárgylista[BEFEJEZÉS IDŐPONTJA]),Tantárgylista[EGYEDI]),Tantárgylista[EGYEDI],0),2),0)","v":0},{"$f":"IFERROR(INDEX(Tantárgylista[],MATCH(SUMPRODUCT((Tantárgylista[NAP]=Órarend[[#Headers],[SZOMBAT]])*(ROUNDDOWN($B23,10)>=ROUNDDOWN(Tantárgylista[KEZDÉS IDŐPONTJA],10))*($B23<=Tantárgylista[BEFEJEZÉS IDŐPONTJA]),Tantárgylista[EGYEDI]),Tantárgylista[EGYEDI],0),2),0)","v":0}]
[null,"13:00:00",{"$f":"IFERROR(INDEX(Tantárgylista[],MATCH(SUMPRODUCT((Tantárgylista[NAP]=Órarend[[#Headers],[VASÁRNAP]])*(ROUNDDOWN($B24,10)>=ROUNDDOWN(Tantárgylista[KEZDÉS IDŐPONTJA],10))*($B24<=Tantárgylista[BEFEJEZÉS IDŐPONTJA]),Tantárgylista[EGYEDI]),Tantárgylista[EGYEDI],0),2),0)","v":0},{"$f":"IFERROR(INDEX(Tantárgylista[],MATCH(SUMPRODUCT((Tantárgylista[NAP]=Órarend[[#Headers],[HÉTFŐ]])*(ROUNDDOWN($B24,10)>=ROUNDDOWN(Tantárgylista[KEZDÉS IDŐPONTJA],10))*($B24<=Tantárgylista[BEFEJEZÉS IDŐPONTJA]),Tantárgylista[EGYEDI]),Tantárgylista[EGYEDI],0),2),0)","v":"TI-121"},{"$f":"IFERROR(INDEX(Tantárgylista[],MATCH(SUMPRODUCT((Tantárgylista[NAP]=Órarend[[#Headers],[KEDD]])*(ROUNDDOWN($B24,10)>=ROUNDDOWN(Tantárgylista[KEZDÉS IDŐPONTJA],10))*($B24<=Tantárgylista[BEFEJEZÉS IDŐPONTJA]),Tantárgylista[EGYEDI]),Tantárgylista[EGYEDI],0),2),0)","v":0},{"$f":"IFERROR(INDEX(Tantárgylista[],MATCH(SUMPRODUCT((Tantárgylista[NAP]=Órarend[[#Headers],[SZERDA]])*(ROUNDDOWN($B24,10)>=ROUNDDOWN(Tantárgylista[KEZDÉS IDŐPONTJA],10))*($B24<=Tantárgylista[BEFEJEZÉS IDŐPONTJA]),Tantárgylista[EGYEDI]),Tantárgylista[EGYEDI],0),2),0)","v":"TI-121"},{"$f":"IFERROR(INDEX(Tantárgylista[],MATCH(SUMPRODUCT((Tantárgylista[NAP]=Órarend[[#Headers],[CSÜTÖRTÖK]])*(ROUNDDOWN($B24,10)>=ROUNDDOWN(Tantárgylista[KEZDÉS IDŐPONTJA],10))*($B24<=Tantárgylista[BEFEJEZÉS IDŐPONTJA]),Tantárgylista[EGYEDI]),Tantárgylista[EGYEDI],0),2),0)","v":0},{"$f":"IFERROR(INDEX(Tantárgylista[],MATCH(SUMPRODUCT((Tantárgylista[NAP]=Órarend[[#Headers],[PÉNTEK]])*(ROUNDDOWN($B24,10)>=ROUNDDOWN(Tantárgylista[KEZDÉS IDŐPONTJA],10))*($B24<=Tantárgylista[BEFEJEZÉS IDŐPONTJA]),Tantárgylista[EGYEDI]),Tantárgylista[EGYEDI],0),2),0)","v":0},{"$f":"IFERROR(INDEX(Tantárgylista[],MATCH(SUMPRODUCT((Tantárgylista[NAP]=Órarend[[#Headers],[SZOMBAT]])*(ROUNDDOWN($B24,10)>=ROUNDDOWN(Tantárgylista[KEZDÉS IDŐPONTJA],10))*($B24<=Tantárgylista[BEFEJEZÉS IDŐPONTJA]),Tantárgylista[EGYEDI]),Tantárgylista[EGYEDI],0),2),0)","v":0}]
[null,"13:15:00",{"$f":"IFERROR(INDEX(Tantárgylista[],MATCH(SUMPRODUCT((Tantárgylista[NAP]=Órarend[[#Headers],[VASÁRNAP]])*(ROUNDDOWN($B25,10)>=ROUNDDOWN(Tantárgylista[KEZDÉS IDŐPONTJA],10))*($B25<=Tantárgylista[BEFEJEZÉS IDŐPONTJA]),Tantárgylista[EGYEDI]),Tantárgylista[EGYEDI],0),2),0)","v":0},{"$f":"IFERROR(INDEX(Tantárgylista[],MATCH(SUMPRODUCT((Tantárgylista[NAP]=Órarend[[#Headers],[HÉTFŐ]])*(ROUNDDOWN($B25,10)>=ROUNDDOWN(Tantárgylista[KEZDÉS IDŐPONTJA],10))*($B25<=Tantárgylista[BEFEJEZÉS IDŐPONTJA]),Tantárgylista[EGYEDI]),Tantárgylista[EGYEDI],0),2),0)","v":"TI-121"},{"$f":"IFERROR(INDEX(Tantárgylista[],MATCH(SUMPRODUCT((Tantárgylista[NAP]=Órarend[[#Headers],[KEDD]])*(ROUNDDOWN($B25,10)>=ROUNDDOWN(Tantárgylista[KEZDÉS IDŐPONTJA],10))*($B25<=Tantárgylista[BEFEJEZÉS IDŐPONTJA]),Tantárgylista[EGYEDI]),Tantárgylista[EGYEDI],0),2),0)","v":0},{"$f":"IFERROR(INDEX(Tantárgylista[],MATCH(SUMPRODUCT((Tantárgylista[NAP]=Órarend[[#Headers],[SZERDA]])*(ROUNDDOWN($B25,10)>=ROUNDDOWN(Tantárgylista[KEZDÉS IDŐPONTJA],10))*($B25<=Tantárgylista[BEFEJEZÉS IDŐPONTJA]),Tantárgylista[EGYEDI]),Tantárgylista[EGYEDI],0),2),0)","v":"TI-121"},{"$f":"IFERROR(INDEX(Tantárgylista[],MATCH(SUMPRODUCT((Tantárgylista[NAP]=Órarend[[#Headers],[CSÜTÖRTÖK]])*(ROUNDDOWN($B25,10)>=ROUNDDOWN(Tantárgylista[KEZDÉS IDŐPONTJA],10))*($B25<=Tantárgylista[BEFEJEZÉS IDŐPONTJA]),Tantárgylista[EGYEDI]),Tantárgylista[EGYEDI],0),2),0)","v":0},{"$f":"IFERROR(INDEX(Tantárgylista[],MATCH(SUMPRODUCT((Tantárgylista[NAP]=Órarend[[#Headers],[PÉNTEK]])*(ROUNDDOWN($B25,10)>=ROUNDDOWN(Tantárgylista[KEZDÉS IDŐPONTJA],10))*($B25<=Tantárgylista[BEFEJEZÉS IDŐPONTJA]),Tantárgylista[EGYEDI]),Tantárgylista[EGYEDI],0),2),0)","v":0},{"$f":"IFERROR(INDEX(Tantárgylista[],MATCH(SUMPRODUCT((Tantárgylista[NAP]=Órarend[[#Headers],[SZOMBAT]])*(ROUNDDOWN($B25,10)>=ROUNDDOWN(Tantárgylista[KEZDÉS IDŐPONTJA],10))*($B25<=Tantárgylista[BEFEJEZÉS IDŐPONTJA]),Tantárgylista[EGYEDI]),Tantárgylista[EGYEDI],0),2),0)","v":0}]
[null,"13:30:00",{"$f":"IFERROR(INDEX(Tantárgylista[],MATCH(SUMPRODUCT((Tantárgylista[NAP]=Órarend[[#Headers],[VASÁRNAP]])*(ROUNDDOWN($B26,10)>=ROUNDDOWN(Tantárgylista[KEZDÉS IDŐPONTJA],10))*($B26<=Tantárgylista[BEFEJEZÉS IDŐPONTJA]),Tantárgylista[EGYEDI]),Tantárgylista[EGYEDI],0),2),0)","v":0},{"$f":"IFERROR(INDEX(Tantárgylista[],MATCH(SUMPRODUCT((Tantárgylista[NAP]=Órarend[[#Headers],[HÉTFŐ]])*(ROUNDDOWN($B26,10)>=ROUNDDOWN(Tantárgylista[KEZDÉS IDŐPONTJA],10))*($B26<=Tantárgylista[BEFEJEZÉS IDŐPONTJA]),Tantárgylista[EGYEDI]),Tantárgylista[EGYEDI],0),2),0)","v":"TI-121"},{"$f":"IFERROR(INDEX(Tantárgylista[],MATCH(SUMPRODUCT((Tantárgylista[NAP]=Órarend[[#Headers],[KEDD]])*(ROUNDDOWN($B26,10)>=ROUNDDOWN(Tantárgylista[KEZDÉS IDŐPONTJA],10))*($B26<=Tantárgylista[BEFEJEZÉS IDŐPONTJA]),Tantárgylista[EGYEDI]),Tantárgylista[EGYEDI],0),2),0)","v":0},{"$f":"IFERROR(INDEX(Tantárgylista[],MATCH(SUMPRODUCT((Tantárgylista[NAP]=Órarend[[#Headers],[SZERDA]])*(ROUNDDOWN($B26,10)>=ROUNDDOWN(Tantárgylista[KEZDÉS IDŐPONTJA],10))*($B26<=Tantárgylista[BEFEJEZÉS IDŐPONTJA]),Tantárgylista[EGYEDI]),Tantárgylista[EGYEDI],0),2),0)","v":"TI-121"},{"$f":"IFERROR(INDEX(Tantárgylista[],MATCH(SUMPRODUCT((Tantárgylista[NAP]=Órarend[[#Headers],[CSÜTÖRTÖK]])*(ROUNDDOWN($B26,10)>=ROUNDDOWN(Tantárgylista[KEZDÉS IDŐPONTJA],10))*($B26<=Tantárgylista[BEFEJEZÉS IDŐPONTJA]),Tantárgylista[EGYEDI]),Tantárgylista[EGYEDI],0),2),0)","v":0},{"$f":"IFERROR(INDEX(Tantárgylista[],MATCH(SUMPRODUCT((Tantárgylista[NAP]=Órarend[[#Headers],[PÉNTEK]])*(ROUNDDOWN($B26,10)>=ROUNDDOWN(Tantárgylista[KEZDÉS IDŐPONTJA],10))*($B26<=Tantárgylista[BEFEJEZÉS IDŐPONTJA]),Tantárgylista[EGYEDI]),Tantárgylista[EGYEDI],0),2),0)","v":0},{"$f":"IFERROR(INDEX(Tantárgylista[],MATCH(SUMPRODUCT((Tantárgylista[NAP]=Órarend[[#Headers],[SZOMBAT]])*(ROUNDDOWN($B26,10)>=ROUNDDOWN(Tantárgylista[KEZDÉS IDŐPONTJA],10))*($B26<=Tantárgylista[BEFEJEZÉS IDŐPONTJA]),Tantárgylista[EGYEDI]),Tantárgylista[EGYEDI],0),2),0)","v":0}]
[null,"13:45:00",{"$f":"IFERROR(INDEX(Tantárgylista[],MATCH(SUMPRODUCT((Tantárgylista[NAP]=Órarend[[#Headers],[VASÁRNAP]])*(ROUNDDOWN($B27,10)>=ROUNDDOWN(Tantárgylista[KEZDÉS IDŐPONTJA],10))*($B27<=Tantárgylista[BEFEJEZÉS IDŐPONTJA]),Tantárgylista[EGYEDI]),Tantárgylista[EGYEDI],0),2),0)","v":0},{"$f":"IFERROR(INDEX(Tantárgylista[],MATCH(SUMPRODUCT((Tantárgylista[NAP]=Órarend[[#Headers],[HÉTFŐ]])*(ROUNDDOWN($B27,10)>=ROUNDDOWN(Tantárgylista[KEZDÉS IDŐPONTJA],10))*($B27<=Tantárgylista[BEFEJEZÉS IDŐPONTJA]),Tantárgylista[EGYEDI]),Tantárgylista[EGYEDI],0),2),0)","v":"TI-121"},{"$f":"IFERROR(INDEX(Tantárgylista[],MATCH(SUMPRODUCT((Tantárgylista[NAP]=Órarend[[#Headers],[KEDD]])*(ROUNDDOWN($B27,10)>=ROUNDDOWN(Tantárgylista[KEZDÉS IDŐPONTJA],10))*($B27<=Tantárgylista[BEFEJEZÉS IDŐPONTJA]),Tantárgylista[EGYEDI]),Tantárgylista[EGYEDI],0),2),0)","v":0},{"$f":"IFERROR(INDEX(Tantárgylista[],MATCH(SUMPRODUCT((Tantárgylista[NAP]=Órarend[[#Headers],[SZERDA]])*(ROUNDDOWN($B27,10)>=ROUNDDOWN(Tantárgylista[KEZDÉS IDŐPONTJA],10))*($B27<=Tantárgylista[BEFEJEZÉS IDŐPONTJA]),Tantárgylista[EGYEDI]),Tantárgylista[EGYEDI],0),2),0)","v":"TI-121"},{"$f":"IFERROR(INDEX(Tantárgylista[],MATCH(SUMPRODUCT((Tantárgylista[NAP]=Órarend[[#Headers],[CSÜTÖRTÖK]])*(ROUNDDOWN($B27,10)>=ROUNDDOWN(Tantárgylista[KEZDÉS IDŐPONTJA],10))*($B27<=Tantárgylista[BEFEJEZÉS IDŐPONTJA]),Tantárgylista[EGYEDI]),Tantárgylista[EGYEDI],0),2),0)","v":0},{"$f":"IFERROR(INDEX(Tantárgylista[],MATCH(SUMPRODUCT((Tantárgylista[NAP]=Órarend[[#Headers],[PÉNTEK]])*(ROUNDDOWN($B27,10)>=ROUNDDOWN(Tantárgylista[KEZDÉS IDŐPONTJA],10))*($B27<=Tantárgylista[BEFEJEZÉS IDŐPONTJA]),Tantárgylista[EGYEDI]),Tantárgylista[EGYEDI],0),2),0)","v":0},{"$f":"IFERROR(INDEX(Tantárgylista[],MATCH(SUMPRODUCT((Tantárgylista[NAP]=Órarend[[#Headers],[SZOMBAT]])*(ROUNDDOWN($B27,10)>=ROUNDDOWN(Tantárgylista[KEZDÉS IDŐPONTJA],10))*($B27<=Tantárgylista[BEFEJEZÉS IDŐPONTJA]),Tantárgylista[EGYEDI]),Tantárgylista[EGYEDI],0),2),0)","v":0}]
[null,"14:00:00",{"$f":"IFERROR(INDEX(Tantárgylista[],MATCH(SUMPRODUCT((Tantárgylista[NAP]=Órarend[[#Headers],[VASÁRNAP]])*(ROUNDDOWN($B28,10)>=ROUNDDOWN(Tantárgylista[KEZDÉS IDŐPONTJA],10))*($B28<=Tantárgylista[BEFEJEZÉS IDŐPONTJA]),Tantárgylista[EGYEDI]),Tantárgylista[EGYEDI],0),2),0)","v":0},{"$f":"IFERROR(INDEX(Tantárgylista[],MATCH(SUMPRODUCT((Tantárgylista[NAP]=Órarend[[#Headers],[HÉTFŐ]])*(ROUNDDOWN($B28,10)>=ROUNDDOWN(Tantárgylista[KEZDÉS IDŐPONTJA],10))*($B28<=Tantárgylista[BEFEJEZÉS IDŐPONTJA]),Tantárgylista[EGYEDI]),Tantárgylista[EGYEDI],0),2),0)","v":"TI-121"},{"$f":"IFERROR(INDEX(Tantárgylista[],MATCH(SUMPRODUCT((Tantárgylista[NAP]=Órarend[[#Headers],[KEDD]])*(ROUNDDOWN($B28,10)>=ROUNDDOWN(Tantárgylista[KEZDÉS IDŐPONTJA],10))*($B28<=Tantárgylista[BEFEJEZÉS IDŐPONTJA]),Tantárgylista[EGYEDI]),Tantárgylista[EGYEDI],0),2),0)","v":0},{"$f":"IFERROR(INDEX(Tantárgylista[],MATCH(SUMPRODUCT((Tantárgylista[NAP]=Órarend[[#Headers],[SZERDA]])*(ROUNDDOWN($B28,10)>=ROUNDDOWN(Tantárgylista[KEZDÉS IDŐPONTJA],10))*($B28<=Tantárgylista[BEFEJEZÉS IDŐPONTJA]),Tantárgylista[EGYEDI]),Tantárgylista[EGYEDI],0),2),0)","v":"TI-121"},{"$f":"IFERROR(INDEX(Tantárgylista[],MATCH(SUMPRODUCT((Tantárgylista[NAP]=Órarend[[#Headers],[CSÜTÖRTÖK]])*(ROUNDDOWN($B28,10)>=ROUNDDOWN(Tantárgylista[KEZDÉS IDŐPONTJA],10))*($B28<=Tantárgylista[BEFEJEZÉS IDŐPONTJA]),Tantárgylista[EGYEDI]),Tantárgylista[EGYEDI],0),2),0)","v":0},{"$f":"IFERROR(INDEX(Tantárgylista[],MATCH(SUMPRODUCT((Tantárgylista[NAP]=Órarend[[#Headers],[PÉNTEK]])*(ROUNDDOWN($B28,10)>=ROUNDDOWN(Tantárgylista[KEZDÉS IDŐPONTJA],10))*($B28<=Tantárgylista[BEFEJEZÉS IDŐPONTJA]),Tantárgylista[EGYEDI]),Tantárgylista[EGYEDI],0),2),0)","v":0},{"$f":"IFERROR(INDEX(Tantárgylista[],MATCH(SUMPRODUCT((Tantárgylista[NAP]=Órarend[[#Headers],[SZOMBAT]])*(ROUNDDOWN($B28,10)>=ROUNDDOWN(Tantárgylista[KEZDÉS IDŐPONTJA],10))*($B28<=Tantárgylista[BEFEJEZÉS IDŐPONTJA]),Tantárgylista[EGYEDI]),Tantárgylista[EGYEDI],0),2),0)","v":0}]
[null,"14:15:00",{"$f":"IFERROR(INDEX(Tantárgylista[],MATCH(SUMPRODUCT((Tantárgylista[NAP]=Órarend[[#Headers],[VASÁRNAP]])*(ROUNDDOWN($B29,10)>=ROUNDDOWN(Tantárgylista[KEZDÉS IDŐPONTJA],10))*($B29<=Tantárgylista[BEFEJEZÉS IDŐPONTJA]),Tantárgylista[EGYEDI]),Tantárgylista[EGYEDI],0),2),0)","v":0},{"$f":"IFERROR(INDEX(Tantárgylista[],MATCH(SUMPRODUCT((Tantárgylista[NAP]=Órarend[[#Headers],[HÉTFŐ]])*(ROUNDDOWN($B29,10)>=ROUNDDOWN(Tantárgylista[KEZDÉS IDŐPONTJA],10))*($B29<=Tantárgylista[BEFEJEZÉS IDŐPONTJA]),Tantárgylista[EGYEDI]),Tantárgylista[EGYEDI],0),2),0)","v":0},{"$f":"IFERROR(INDEX(Tantárgylista[],MATCH(SUMPRODUCT((Tantárgylista[NAP]=Órarend[[#Headers],[KEDD]])*(ROUNDDOWN($B29,10)>=ROUNDDOWN(Tantárgylista[KEZDÉS IDŐPONTJA],10))*($B29<=Tantárgylista[BEFEJEZÉS IDŐPONTJA]),Tantárgylista[EGYEDI]),Tantárgylista[EGYEDI],0),2),0)","v":0},{"$f":"IFERROR(INDEX(Tantárgylista[],MATCH(SUMPRODUCT((Tantárgylista[NAP]=Órarend[[#Headers],[SZERDA]])*(ROUNDDOWN($B29,10)>=ROUNDDOWN(Tantárgylista[KEZDÉS IDŐPONTJA],10))*($B29<=Tantárgylista[BEFEJEZÉS IDŐPONTJA]),Tantárgylista[EGYEDI]),Tantárgylista[EGYEDI],0),2),0)","v":0},{"$f":"IFERROR(INDEX(Tantárgylista[],MATCH(SUMPRODUCT((Tantárgylista[NAP]=Órarend[[#Headers],[CSÜTÖRTÖK]])*(ROUNDDOWN($B29,10)>=ROUNDDOWN(Tantárgylista[KEZDÉS IDŐPONTJA],10))*($B29<=Tantárgylista[BEFEJEZÉS IDŐPONTJA]),Tantárgylista[EGYEDI]),Tantárgylista[EGYEDI],0),2),0)","v":0},{"$f":"IFERROR(INDEX(Tantárgylista[],MATCH(SUMPRODUCT((Tantárgylista[NAP]=Órarend[[#Headers],[PÉNTEK]])*(ROUNDDOWN($B29,10)>=ROUNDDOWN(Tantárgylista[KEZDÉS IDŐPONTJA],10))*($B29<=Tantárgylista[BEFEJEZÉS IDŐPONTJA]),Tantárgylista[EGYEDI]),Tantárgylista[EGYEDI],0),2),0)","v":0},{"$f":"IFERROR(INDEX(Tantárgylista[],MATCH(SUMPRODUCT((Tantárgylista[NAP]=Órarend[[#Headers],[SZOMBAT]])*(ROUNDDOWN($B29,10)>=ROUNDDOWN(Tantárgylista[KEZDÉS IDŐPONTJA],10))*($B29<=Tantárgylista[BEFEJEZÉS IDŐPONTJA]),Tantárgylista[EGYEDI]),Tantárgylista[EGYEDI],0),2),0)","v":0}]
[null,"14:30:00",{"$f":"IFERROR(INDEX(Tantárgylista[],MATCH(SUMPRODUCT((Tantárgylista[NAP]=Órarend[[#Headers],[VASÁRNAP]])*(ROUNDDOWN($B30,10)>=ROUNDDOWN(Tantárgylista[KEZDÉS IDŐPONTJA],10))*($B30<=Tantárgylista[BEFEJEZÉS IDŐPONTJA]),Tantárgylista[EGYEDI]),Tantárgylista[EGYEDI],0),2),0)","v":0},{"$f":"IFERROR(INDEX(Tantárgylista[],MATCH(SUMPRODUCT((Tantárgylista[NAP]=Órarend[[#Headers],[HÉTFŐ]])*(ROUNDDOWN($B30,10)>=ROUNDDOWN(Tantárgylista[KEZDÉS IDŐPONTJA],10))*($B30<=Tantárgylista[BEFEJEZÉS IDŐPONTJA]),Tantárgylista[EGYEDI]),Tantárgylista[EGYEDI],0),2),0)","v":0},{"$f":"IFERROR(INDEX(Tantárgylista[],MATCH(SUMPRODUCT((Tantárgylista[NAP]=Órarend[[#Headers],[KEDD]])*(ROUNDDOWN($B30,10)>=ROUNDDOWN(Tantárgylista[KEZDÉS IDŐPONTJA],10))*($B30<=Tantárgylista[BEFEJEZÉS IDŐPONTJA]),Tantárgylista[EGYEDI]),Tantárgylista[EGYEDI],0),2),0)","v":0},{"$f":"IFERROR(INDEX(Tantárgylista[],MATCH(SUMPRODUCT((Tantárgylista[NAP]=Órarend[[#Headers],[SZERDA]])*(ROUNDDOWN($B30,10)>=ROUNDDOWN(Tantárgylista[KEZDÉS IDŐPONTJA],10))*($B30<=Tantárgylista[BEFEJEZÉS IDŐPONTJA]),Tantárgylista[EGYEDI]),Tantárgylista[EGYEDI],0),2),0)","v":0},{"$f":"IFERROR(INDEX(Tantárgylista[],MATCH(SUMPRODUCT((Tantárgylista[NAP]=Órarend[[#Headers],[CSÜTÖRTÖK]])*(ROUNDDOWN($B30,10)>=ROUNDDOWN(Tantárgylista[KEZDÉS IDŐPONTJA],10))*($B30<=Tantárgylista[BEFEJEZÉS IDŐPONTJA]),Tantárgylista[EGYEDI]),Tantárgylista[EGYEDI],0),2),0)","v":0},{"$f":"IFERROR(INDEX(Tantárgylista[],MATCH(SUMPRODUCT((Tantárgylista[NAP]=Órarend[[#Headers],[PÉNTEK]])*(ROUNDDOWN($B30,10)>=ROUNDDOWN(Tantárgylista[KEZDÉS IDŐPONTJA],10))*($B30<=Tantárgylista[BEFEJEZÉS IDŐPONTJA]),Tantárgylista[EGYEDI]),Tantárgylista[EGYEDI],0),2),0)","v":0},{"$f":"IFERROR(INDEX(Tantárgylista[],MATCH(SUMPRODUCT((Tantárgylista[NAP]=Órarend[[#Headers],[SZOMBAT]])*(ROUNDDOWN($B30,10)>=ROUNDDOWN(Tantárgylista[KEZDÉS IDŐPONTJA],10))*($B30<=Tantárgylista[BEFEJEZÉS IDŐPONTJA]),Tantárgylista[EGYEDI]),Tantárgylista[EGYEDI],0),2),0)","v":0}]
[null,"14:45:00",{"$f":"IFERROR(INDEX(Tantárgylista[],MATCH(SUMPRODUCT((Tantárgylista[NAP]=Órarend[[#Headers],[VASÁRNAP]])*(ROUNDDOWN($B31,10)>=ROUNDDOWN(Tantárgylista[KEZDÉS IDŐPONTJA],10))*($B31<=Tantárgylista[BEFEJEZÉS IDŐPONTJA]),Tantárgylista[EGYEDI]),Tantárgylista[EGYEDI],0),2),0)","v":0},{"$f":"IFERROR(INDEX(Tantárgylista[],MATCH(SUMPRODUCT((Tantárgylista[NAP]=Órarend[[#Headers],[HÉTFŐ]])*(ROUNDDOWN($B31,10)>=ROUNDDOWN(Tantárgylista[KEZDÉS IDŐPONTJA],10))*($B31<=Tantárgylista[BEFEJEZÉS IDŐPONTJA]),Tantárgylista[EGYEDI]),Tantárgylista[EGYEDI],0),2),0)","v":0},{"$f":"IFERROR(INDEX(Tantárgylista[],MATCH(SUMPRODUCT((Tantárgylista[NAP]=Órarend[[#Headers],[KEDD]])*(ROUNDDOWN($B31,10)>=ROUNDDOWN(Tantárgylista[KEZDÉS IDŐPONTJA],10))*($B31<=Tantárgylista[BEFEJEZÉS IDŐPONTJA]),Tantárgylista[EGYEDI]),Tantárgylista[EGYEDI],0),2),0)","v":0},{"$f":"IFERROR(INDEX(Tantárgylista[],MATCH(SUMPRODUCT((Tantárgylista[NAP]=Órarend[[#Headers],[SZERDA]])*(ROUNDDOWN($B31,10)>=ROUNDDOWN(Tantárgylista[KEZDÉS IDŐPONTJA],10))*($B31<=Tantárgylista[BEFEJEZÉS IDŐPONTJA]),Tantárgylista[EGYEDI]),Tantárgylista[EGYEDI],0),2),0)","v":0},{"$f":"IFERROR(INDEX(Tantárgylista[],MATCH(SUMPRODUCT((Tantárgylista[NAP]=Órarend[[#Headers],[CSÜTÖRTÖK]])*(ROUNDDOWN($B31,10)>=ROUNDDOWN(Tantárgylista[KEZDÉS IDŐPONTJA],10))*($B31<=Tantárgylista[BEFEJEZÉS IDŐPONTJA]),Tantárgylista[EGYEDI]),Tantárgylista[EGYEDI],0),2),0)","v":0},{"$f":"IFERROR(INDEX(Tantárgylista[],MATCH(SUMPRODUCT((Tantárgylista[NAP]=Órarend[[#Headers],[PÉNTEK]])*(ROUNDDOWN($B31,10)>=ROUNDDOWN(Tantárgylista[KEZDÉS IDŐPONTJA],10))*($B31<=Tantárgylista[BEFEJEZÉS IDŐPONTJA]),Tantárgylista[EGYEDI]),Tantárgylista[EGYEDI],0),2),0)","v":0},{"$f":"IFERROR(INDEX(Tantárgylista[],MATCH(SUMPRODUCT((Tantárgylista[NAP]=Órarend[[#Headers],[SZOMBAT]])*(ROUNDDOWN($B31,10)>=ROUNDDOWN(Tantárgylista[KEZDÉS IDŐPONTJA],10))*($B31<=Tantárgylista[BEFEJEZÉS IDŐPONTJA]),Tantárgylista[EGYEDI]),Tantárgylista[EGYEDI],0),2),0)","v":0}]
[null,"15:00:00",{"$f":"IFERROR(INDEX(Tantárgylista[],MATCH(SUMPRODUCT((Tantárgylista[NAP]=Órarend[[#Headers],[VASÁRNAP]])*(ROUNDDOWN($B32,10)>=ROUNDDOWN(Tantárgylista[KEZDÉS IDŐPONTJA],10))*($B32<=Tantárgylista[BEFEJEZÉS IDŐPONTJA]),Tantárgylista[EGYEDI]),Tantárgylista[EGYEDI],0),2),0)","v":0},{"$f":"IFERROR(INDEX(Tantárgylista[],MATCH(SUMPRODUCT((Tantárgylista[NAP]=Órarend[[#Headers],[HÉTFŐ]])*(ROUNDDOWN($B32,10)>=ROUNDDOWN(Tantárgylista[KEZDÉS IDŐPONTJA],10))*($B32<=Tantárgylista[BEFEJEZÉS IDŐPONTJA]),Tantárgylista[EGYEDI]),Tantárgylista[EGYEDI],0),2),0)","v":0},{"$f":"IFERROR(INDEX(Tantárgylista[],MATCH(SUMPRODUCT((Tantárgylista[NAP]=Órarend[[#Headers],[KEDD]])*(ROUNDDOWN($B32,10)>=ROUNDDOWN(Tantárgylista[KEZDÉS IDŐPONTJA],10))*($B32<=Tantárgylista[BEFEJEZÉS IDŐPONTJA]),Tantárgylista[EGYEDI]),Tantárgylista[EGYEDI],0),2),0)","v":0},{"$f":"IFERROR(INDEX(Tantárgylista[],MATCH(SUMPRODUCT((Tantárgylista[NAP]=Órarend[[#Headers],[SZERDA]])*(ROUNDDOWN($B32,10)>=ROUNDDOWN(Tantárgylista[KEZDÉS IDŐPONTJA],10))*($B32<=Tantárgylista[BEFEJEZÉS IDŐPONTJA]),Tantárgylista[EGYEDI]),Tantárgylista[EGYEDI],0),2),0)","v":0},{"$f":"IFERROR(INDEX(Tantárgylista[],MATCH(SUMPRODUCT((Tantárgylista[NAP]=Órarend[[#Headers],[CSÜTÖRTÖK]])*(ROUNDDOWN($B32,10)>=ROUNDDOWN(Tantárgylista[KEZDÉS IDŐPONTJA],10))*($B32<=Tantárgylista[BEFEJEZÉS IDŐPONTJA]),Tantárgylista[EGYEDI]),Tantárgylista[EGYEDI],0),2),0)","v":0},{"$f":"IFERROR(INDEX(Tantárgylista[],MATCH(SUMPRODUCT((Tantárgylista[NAP]=Órarend[[#Headers],[PÉNTEK]])*(ROUNDDOWN($B32,10)>=ROUNDDOWN(Tantárgylista[KEZDÉS IDŐPONTJA],10))*($B32<=Tantárgylista[BEFEJEZÉS IDŐPONTJA]),Tantárgylista[EGYEDI]),Tantárgylista[EGYEDI],0),2),0)","v":0},{"$f":"IFERROR(INDEX(Tantárgylista[],MATCH(SUMPRODUCT((Tantárgylista[NAP]=Órarend[[#Headers],[SZOMBAT]])*(ROUNDDOWN($B32,10)>=ROUNDDOWN(Tantárgylista[KEZDÉS IDŐPONTJA],10))*($B32<=Tantárgylista[BEFEJEZÉS IDŐPONTJA]),Tantárgylista[EGYEDI]),Tantárgylista[EGYEDI],0),2),0)","v":0}]
[null,"15:15:00",{"$f":"IFERROR(INDEX(Tantárgylista[],MATCH(SUMPRODUCT((Tantárgylista[NAP]=Órarend[[#Headers],[VASÁRNAP]])*(ROUNDDOWN($B33,10)>=ROUNDDOWN(Tantárgylista[KEZDÉS IDŐPONTJA],10))*($B33<=Tantárgylista[BEFEJEZÉS IDŐPONTJA]),Tantárgylista[EGYEDI]),Tantárgylista[EGYEDI],0),2),0)","v":0},{"$f":"IFERROR(INDEX(Tantárgylista[],MATCH(SUMPRODUCT((Tantárgylista[NAP]=Órarend[[#Headers],[HÉTFŐ]])*(ROUNDDOWN($B33,10)>=ROUNDDOWN(Tantárgylista[KEZDÉS IDŐPONTJA],10))*($B33<=Tantárgylista[BEFEJEZÉS IDŐPONTJA]),Tantárgylista[EGYEDI]),Tantárgylista[EGYEDI],0),2),0)","v":0},{"$f":"IFERROR(INDEX(Tantárgylista[],MATCH(SUMPRODUCT((Tantárgylista[NAP]=Órarend[[#Headers],[KEDD]])*(ROUNDDOWN($B33,10)>=ROUNDDOWN(Tantárgylista[KEZDÉS IDŐPONTJA],10))*($B33<=Tantárgylista[BEFEJEZÉS IDŐPONTJA]),Tantárgylista[EGYEDI]),Tantárgylista[EGYEDI],0),2),0)","v":0},{"$f":"IFERROR(INDEX(Tantárgylista[],MATCH(SUMPRODUCT((Tantárgylista[NAP]=Órarend[[#Headers],[SZERDA]])*(ROUNDDOWN($B33,10)>=ROUNDDOWN(Tantárgylista[KEZDÉS IDŐPONTJA],10))*($B33<=Tantárgylista[BEFEJEZÉS IDŐPONTJA]),Tantárgylista[EGYEDI]),Tantárgylista[EGYEDI],0),2),0)","v":0},{"$f":"IFERROR(INDEX(Tantárgylista[],MATCH(SUMPRODUCT((Tantárgylista[NAP]=Órarend[[#Headers],[CSÜTÖRTÖK]])*(ROUNDDOWN($B33,10)>=ROUNDDOWN(Tantárgylista[KEZDÉS IDŐPONTJA],10))*($B33<=Tantárgylista[BEFEJEZÉS IDŐPONTJA]),Tantárgylista[EGYEDI]),Tantárgylista[EGYEDI],0),2),0)","v":0},{"$f":"IFERROR(INDEX(Tantárgylista[],MATCH(SUMPRODUCT((Tantárgylista[NAP]=Órarend[[#Headers],[PÉNTEK]])*(ROUNDDOWN($B33,10)>=ROUNDDOWN(Tantárgylista[KEZDÉS IDŐPONTJA],10))*($B33<=Tantárgylista[BEFEJEZÉS IDŐPONTJA]),Tantárgylista[EGYEDI]),Tantárgylista[EGYEDI],0),2),0)","v":0},{"$f":"IFERROR(INDEX(Tantárgylista[],MATCH(SUMPRODUCT((Tantárgylista[NAP]=Órarend[[#Headers],[SZOMBAT]])*(ROUNDDOWN($B33,10)>=ROUNDDOWN(Tantárgylista[KEZDÉS IDŐPONTJA],10))*($B33<=Tantárgylista[BEFEJEZÉS IDŐPONTJA]),Tantárgylista[EGYEDI]),Tantárgylista[EGYEDI],0),2),0)","v":0}]
[null,"15:30:00",{"$f":"IFERROR(INDEX(Tantárgylista[],MATCH(SUMPRODUCT((Tantárgylista[NAP]=Órarend[[#Headers],[VASÁRNAP]])*(ROUNDDOWN($B34,10)>=ROUNDDOWN(Tantárgylista[KEZDÉS IDŐPONTJA],10))*($B34<=Tantárgylista[BEFEJEZÉS IDŐPONTJA]),Tantárgylista[EGYEDI]),Tantárgylista[EGYEDI],0),2),0)","v":0},{"$f":"IFERROR(INDEX(Tantárgylista[],MATCH(SUMPRODUCT((Tantárgylista[NAP]=Órarend[[#Headers],[HÉTFŐ]])*(ROUNDDOWN($B34,10)>=ROUNDDOWN(Tantárgylista[KEZDÉS IDŐPONTJA],10))*($B34<=Tantárgylista[BEFEJEZÉS IDŐPONTJA]),Tantárgylista[EGYEDI]),Tantárgylista[EGYEDI],0),2),0)","v":0},{"$f":"IFERROR(INDEX(Tantárgylista[],MATCH(SUMPRODUCT((Tantárgylista[NAP]=Órarend[[#Headers],[KEDD]])*(ROUNDDOWN($B34,10)>=ROUNDDOWN(Tantárgylista[KEZDÉS IDŐPONTJA],10))*($B34<=Tantárgylista[BEFEJEZÉS IDŐPONTJA]),Tantárgylista[EGYEDI]),Tantárgylista[EGYEDI],0),2),0)","v":0},{"$f":"IFERROR(INDEX(Tantárgylista[],MATCH(SUMPRODUCT((Tantárgylista[NAP]=Órarend[[#Headers],[SZERDA]])*(ROUNDDOWN($B34,10)>=ROUNDDOWN(Tantárgylista[KEZDÉS IDŐPONTJA],10))*($B34<=Tantárgylista[BEFEJEZÉS IDŐPONTJA]),Tantárgylista[EGYEDI]),Tantárgylista[EGYEDI],0),2),0)","v":0},{"$f":"IFERROR(INDEX(Tantárgylista[],MATCH(SUMPRODUCT((Tantárgylista[NAP]=Órarend[[#Headers],[CSÜTÖRTÖK]])*(ROUNDDOWN($B34,10)>=ROUNDDOWN(Tantárgylista[KEZDÉS IDŐPONTJA],10))*($B34<=Tantárgylista[BEFEJEZÉS IDŐPONTJA]),Tantárgylista[EGYEDI]),Tantárgylista[EGYEDI],0),2),0)","v":0},{"$f":"IFERROR(INDEX(Tantárgylista[],MATCH(SUMPRODUCT((Tantárgylista[NAP]=Órarend[[#Headers],[PÉNTEK]])*(ROUNDDOWN($B34,10)>=ROUNDDOWN(Tantárgylista[KEZDÉS IDŐPONTJA],10))*($B34<=Tantárgylista[BEFEJEZÉS IDŐPONTJA]),Tantárgylista[EGYEDI]),Tantárgylista[EGYEDI],0),2),0)","v":0},{"$f":"IFERROR(INDEX(Tantárgylista[],MATCH(SUMPRODUCT((Tantárgylista[NAP]=Órarend[[#Headers],[SZOMBAT]])*(ROUNDDOWN($B34,10)>=ROUNDDOWN(Tantárgylista[KEZDÉS IDŐPONTJA],10))*($B34<=Tantárgylista[BEFEJEZÉS IDŐPONTJA]),Tantárgylista[EGYEDI]),Tantárgylista[EGYEDI],0),2),0)","v":0}]
[null,"15:45:00",{"$f":"IFERROR(INDEX(Tantárgylista[],MATCH(SUMPRODUCT((Tantárgylista[NAP]=Órarend[[#Headers],[VASÁRNAP]])*(ROUNDDOWN($B35,10)>=ROUNDDOWN(Tantárgylista[KEZDÉS IDŐPONTJA],10))*($B35<=Tantárgylista[BEFEJEZÉS IDŐPONTJA]),Tantárgylista[EGYEDI]),Tantárgylista[EGYEDI],0),2),0)","v":0},{"$f":"IFERROR(INDEX(Tantárgylista[],MATCH(SUMPRODUCT((Tantárgylista[NAP]=Órarend[[#Headers],[HÉTFŐ]])*(ROUNDDOWN($B35,10)>=ROUNDDOWN(Tantárgylista[KEZDÉS IDŐPONTJA],10))*($B35<=Tantárgylista[BEFEJEZÉS IDŐPONTJA]),Tantárgylista[EGYEDI]),Tantárgylista[EGYEDI],0),2),0)","v":0},{"$f":"IFERROR(INDEX(Tantárgylista[],MATCH(SUMPRODUCT((Tantárgylista[NAP]=Órarend[[#Headers],[KEDD]])*(ROUNDDOWN($B35,10)>=ROUNDDOWN(Tantárgylista[KEZDÉS IDŐPONTJA],10))*($B35<=Tantárgylista[BEFEJEZÉS IDŐPONTJA]),Tantárgylista[EGYEDI]),Tantárgylista[EGYEDI],0),2),0)","v":0},{"$f":"IFERROR(INDEX(Tantárgylista[],MATCH(SUMPRODUCT((Tantárgylista[NAP]=Órarend[[#Headers],[SZERDA]])*(ROUNDDOWN($B35,10)>=ROUNDDOWN(Tantárgylista[KEZDÉS IDŐPONTJA],10))*($B35<=Tantárgylista[BEFEJEZÉS IDŐPONTJA]),Tantárgylista[EGYEDI]),Tantárgylista[EGYEDI],0),2),0)","v":0},{"$f":"IFERROR(INDEX(Tantárgylista[],MATCH(SUMPRODUCT((Tantárgylista[NAP]=Órarend[[#Headers],[CSÜTÖRTÖK]])*(ROUNDDOWN($B35,10)>=ROUNDDOWN(Tantárgylista[KEZDÉS IDŐPONTJA],10))*($B35<=Tantárgylista[BEFEJEZÉS IDŐPONTJA]),Tantárgylista[EGYEDI]),Tantárgylista[EGYEDI],0),2),0)","v":0},{"$f":"IFERROR(INDEX(Tantárgylista[],MATCH(SUMPRODUCT((Tantárgylista[NAP]=Órarend[[#Headers],[PÉNTEK]])*(ROUNDDOWN($B35,10)>=ROUNDDOWN(Tantárgylista[KEZDÉS IDŐPONTJA],10))*($B35<=Tantárgylista[BEFEJEZÉS IDŐPONTJA]),Tantárgylista[EGYEDI]),Tantárgylista[EGYEDI],0),2),0)","v":0},{"$f":"IFERROR(INDEX(Tantárgylista[],MATCH(SUMPRODUCT((Tantárgylista[NAP]=Órarend[[#Headers],[SZOMBAT]])*(ROUNDDOWN($B35,10)>=ROUNDDOWN(Tantárgylista[KEZDÉS IDŐPONTJA],10))*($B35<=Tantárgylista[BEFEJEZÉS IDŐPONTJA]),Tantárgylista[EGYEDI]),Tantárgylista[EGYEDI],0),2),0)","v":0}]
[null,"16:00:00",{"$f":"IFERROR(INDEX(Tantárgylista[],MATCH(SUMPRODUCT((Tantárgylista[NAP]=Órarend[[#Headers],[VASÁRNAP]])*(ROUNDDOWN($B36,10)>=ROUNDDOWN(Tantárgylista[KEZDÉS IDŐPONTJA],10))*($B36<=Tantárgylista[BEFEJEZÉS IDŐPONTJA]),Tantárgylista[EGYEDI]),Tantárgylista[EGYEDI],0),2),0)","v":0},{"$f":"IFERROR(INDEX(Tantárgylista[],MATCH(SUMPRODUCT((Tantárgylista[NAP]=Órarend[[#Headers],[HÉTFŐ]])*(ROUNDDOWN($B36,10)>=ROUNDDOWN(Tantárgylista[KEZDÉS IDŐPONTJA],10))*($B36<=Tantárgylista[BEFEJEZÉS IDŐPONTJA]),Tantárgylista[EGYEDI]),Tantárgylista[EGYEDI],0),2),0)","v":"RE-111"},{"$f":"IFERROR(INDEX(Tantárgylista[],MATCH(SUMPRODUCT((Tantárgylista[NAP]=Órarend[[#Headers],[KEDD]])*(ROUNDDOWN($B36,10)>=ROUNDDOWN(Tantárgylista[KEZDÉS IDŐPONTJA],10))*($B36<=Tantárgylista[BEFEJEZÉS IDŐPONTJA]),Tantárgylista[EGYEDI]),Tantárgylista[EGYEDI],0),2),0)","v":0},{"$f":"IFERROR(INDEX(Tantárgylista[],MATCH(SUMPRODUCT((Tantárgylista[NAP]=Órarend[[#Headers],[SZERDA]])*(ROUNDDOWN($B36,10)>=ROUNDDOWN(Tantárgylista[KEZDÉS IDŐPONTJA],10))*($B36<=Tantárgylista[BEFEJEZÉS IDŐPONTJA]),Tantárgylista[EGYEDI]),Tantárgylista[EGYEDI],0),2),0)","v":0},{"$f":"IFERROR(INDEX(Tantárgylista[],MATCH(SUMPRODUCT((Tantárgylista[NAP]=Órarend[[#Headers],[CSÜTÖRTÖK]])*(ROUNDDOWN($B36,10)>=ROUNDDOWN(Tantárgylista[KEZDÉS IDŐPONTJA],10))*($B36<=Tantárgylista[BEFEJEZÉS IDŐPONTJA]),Tantárgylista[EGYEDI]),Tantárgylista[EGYEDI],0),2),0)","v":0},{"$f":"IFERROR(INDEX(Tantárgylista[],MATCH(SUMPRODUCT((Tantárgylista[NAP]=Órarend[[#Headers],[PÉNTEK]])*(ROUNDDOWN($B36,10)>=ROUNDDOWN(Tantárgylista[KEZDÉS IDŐPONTJA],10))*($B36<=Tantárgylista[BEFEJEZÉS IDŐPONTJA]),Tantárgylista[EGYEDI]),Tantárgylista[EGYEDI],0),2),0)","v":0},{"$f":"IFERROR(INDEX(Tantárgylista[],MATCH(SUMPRODUCT((Tantárgylista[NAP]=Órarend[[#Headers],[SZOMBAT]])*(ROUNDDOWN($B36,10)>=ROUNDDOWN(Tantárgylista[KEZDÉS IDŐPONTJA],10))*($B36<=Tantárgylista[BEFEJEZÉS IDŐPONTJA]),Tantárgylista[EGYEDI]),Tantárgylista[EGYEDI],0),2),0)","v":0}]
[null,"16:15:00",{"$f":"IFERROR(INDEX(Tantárgylista[],MATCH(SUMPRODUCT((Tantárgylista[NAP]=Órarend[[#Headers],[VASÁRNAP]])*(ROUNDDOWN($B37,10)>=ROUNDDOWN(Tantárgylista[KEZDÉS IDŐPONTJA],10))*($B37<=Tantárgylista[BEFEJEZÉS IDŐPONTJA]),Tantárgylista[EGYEDI]),Tantárgylista[EGYEDI],0),2),0)","v":0},{"$f":"IFERROR(INDEX(Tantárgylista[],MATCH(SUMPRODUCT((Tantárgylista[NAP]=Órarend[[#Headers],[HÉTFŐ]])*(ROUNDDOWN($B37,10)>=ROUNDDOWN(Tantárgylista[KEZDÉS IDŐPONTJA],10))*($B37<=Tantárgylista[BEFEJEZÉS IDŐPONTJA]),Tantárgylista[EGYEDI]),Tantárgylista[EGYEDI],0),2),0)","v":"RE-111"},{"$f":"IFERROR(INDEX(Tantárgylista[],MATCH(SUMPRODUCT((Tantárgylista[NAP]=Órarend[[#Headers],[KEDD]])*(ROUNDDOWN($B37,10)>=ROUNDDOWN(Tantárgylista[KEZDÉS IDŐPONTJA],10))*($B37<=Tantárgylista[BEFEJEZÉS IDŐPONTJA]),Tantárgylista[EGYEDI]),Tantárgylista[EGYEDI],0),2),0)","v":0},{"$f":"IFERROR(INDEX(Tantárgylista[],MATCH(SUMPRODUCT((Tantárgylista[NAP]=Órarend[[#Headers],[SZERDA]])*(ROUNDDOWN($B37,10)>=ROUNDDOWN(Tantárgylista[KEZDÉS IDŐPONTJA],10))*($B37<=Tantárgylista[BEFEJEZÉS IDŐPONTJA]),Tantárgylista[EGYEDI]),Tantárgylista[EGYEDI],0),2),0)","v":0},{"$f":"IFERROR(INDEX(Tantárgylista[],MATCH(SUMPRODUCT((Tantárgylista[NAP]=Órarend[[#Headers],[CSÜTÖRTÖK]])*(ROUNDDOWN($B37,10)>=ROUNDDOWN(Tantárgylista[KEZDÉS IDŐPONTJA],10))*($B37<=Tantárgylista[BEFEJEZÉS IDŐPONTJA]),Tantárgylista[EGYEDI]),Tantárgylista[EGYEDI],0),2),0)","v":0},{"$f":"IFERROR(INDEX(Tantárgylista[],MATCH(SUMPRODUCT((Tantárgylista[NAP]=Órarend[[#Headers],[PÉNTEK]])*(ROUNDDOWN($B37,10)>=ROUNDDOWN(Tantárgylista[KEZDÉS IDŐPONTJA],10))*($B37<=Tantárgylista[BEFEJEZÉS IDŐPONTJA]),Tantárgylista[EGYEDI]),Tantárgylista[EGYEDI],0),2),0)","v":0},{"$f":"IFERROR(INDEX(Tantárgylista[],MATCH(SUMPRODUCT((Tantárgylista[NAP]=Órarend[[#Headers],[SZOMBAT]])*(ROUNDDOWN($B37,10)>=ROUNDDOWN(Tantárgylista[KEZDÉS IDŐPONTJA],10))*($B37<=Tantárgylista[BEFEJEZÉS IDŐPONTJA]),Tantárgylista[EGYEDI]),Tantárgylista[EGYEDI],0),2),0)","v":0}]
[null,"16:30:00",{"$f":"IFERROR(INDEX(Tantárgylista[],MATCH(SUMPRODUCT((Tantárgylista[NAP]=Órarend[[#Headers],[VASÁRNAP]])*(ROUNDDOWN($B38,10)>=ROUNDDOWN(Tantárgylista[KEZDÉS IDŐPONTJA],10))*($B38<=Tantárgylista[BEFEJEZÉS IDŐPONTJA]),Tantárgylista[EGYEDI]),Tantárgylista[EGYEDI],0),2),0)","v":0},{"$f":"IFERROR(INDEX(Tantárgylista[],MATCH(SUMPRODUCT((Tantárgylista[NAP]=Órarend[[#Headers],[HÉTFŐ]])*(ROUNDDOWN($B38,10)>=ROUNDDOWN(Tantárgylista[KEZDÉS IDŐPONTJA],10))*($B38<=Tantárgylista[BEFEJEZÉS IDŐPONTJA]),Tantárgylista[EGYEDI]),Tantárgylista[EGYEDI],0),2),0)","v":"RE-111"},{"$f":"IFERROR(INDEX(Tantárgylista[],MATCH(SUMPRODUCT((Tantárgylista[NAP]=Órarend[[#Headers],[KEDD]])*(ROUNDDOWN($B38,10)>=ROUNDDOWN(Tantárgylista[KEZDÉS IDŐPONTJA],10))*($B38<=Tantárgylista[BEFEJEZÉS IDŐPONTJA]),Tantárgylista[EGYEDI]),Tantárgylista[EGYEDI],0),2),0)","v":0},{"$f":"IFERROR(INDEX(Tantárgylista[],MATCH(SUMPRODUCT((Tantárgylista[NAP]=Órarend[[#Headers],[SZERDA]])*(ROUNDDOWN($B38,10)>=ROUNDDOWN(Tantárgylista[KEZDÉS IDŐPONTJA],10))*($B38<=Tantárgylista[BEFEJEZÉS IDŐPONTJA]),Tantárgylista[EGYEDI]),Tantárgylista[EGYEDI],0),2),0)","v":0},{"$f":"IFERROR(INDEX(Tantárgylista[],MATCH(SUMPRODUCT((Tantárgylista[NAP]=Órarend[[#Headers],[CSÜTÖRTÖK]])*(ROUNDDOWN($B38,10)>=ROUNDDOWN(Tantárgylista[KEZDÉS IDŐPONTJA],10))*($B38<=Tantárgylista[BEFEJEZÉS IDŐPONTJA]),Tantárgylista[EGYEDI]),Tantárgylista[EGYEDI],0),2),0)","v":0},{"$f":"IFERROR(INDEX(Tantárgylista[],MATCH(SUMPRODUCT((Tantárgylista[NAP]=Órarend[[#Headers],[PÉNTEK]])*(ROUNDDOWN($B38,10)>=ROUNDDOWN(Tantárgylista[KEZDÉS IDŐPONTJA],10))*($B38<=Tantárgylista[BEFEJEZÉS IDŐPONTJA]),Tantárgylista[EGYEDI]),Tantárgylista[EGYEDI],0),2),0)","v":0},{"$f":"IFERROR(INDEX(Tantárgylista[],MATCH(SUMPRODUCT((Tantárgylista[NAP]=Órarend[[#Headers],[SZOMBAT]])*(ROUNDDOWN($B38,10)>=ROUNDDOWN(Tantárgylista[KEZDÉS IDŐPONTJA],10))*($B38<=Tantárgylista[BEFEJEZÉS IDŐPONTJA]),Tantárgylista[EGYEDI]),Tantárgylista[EGYEDI],0),2),0)","v":0}]
[null,"16:45:00",{"$f":"IFERROR(INDEX(Tantárgylista[],MATCH(SUMPRODUCT((Tantárgylista[NAP]=Órarend[[#Headers],[VASÁRNAP]])*(ROUNDDOWN($B39,10)>=ROUNDDOWN(Tantárgylista[KEZDÉS IDŐPONTJA],10))*($B39<=Tantárgylista[BEFEJEZÉS IDŐPONTJA]),Tantárgylista[EGYEDI]),Tantárgylista[EGYEDI],0),2),0)","v":0},{"$f":"IFERROR(INDEX(Tantárgylista[],MATCH(SUMPRODUCT((Tantárgylista[NAP]=Órarend[[#Headers],[HÉTFŐ]])*(ROUNDDOWN($B39,10)>=ROUNDDOWN(Tantárgylista[KEZDÉS IDŐPONTJA],10))*($B39<=Tantárgylista[BEFEJEZÉS IDŐPONTJA]),Tantárgylista[EGYEDI]),Tantárgylista[EGYEDI],0),2),0)","v":"RE-111"},{"$f":"IFERROR(INDEX(Tantárgylista[],MATCH(SUMPRODUCT((Tantárgylista[NAP]=Órarend[[#Headers],[KEDD]])*(ROUNDDOWN($B39,10)>=ROUNDDOWN(Tantárgylista[KEZDÉS IDŐPONTJA],10))*($B39<=Tantárgylista[BEFEJEZÉS IDŐPONTJA]),Tantárgylista[EGYEDI]),Tantárgylista[EGYEDI],0),2),0)","v":0},{"$f":"IFERROR(INDEX(Tantárgylista[],MATCH(SUMPRODUCT((Tantárgylista[NAP]=Órarend[[#Headers],[SZERDA]])*(ROUNDDOWN($B39,10)>=ROUNDDOWN(Tantárgylista[KEZDÉS IDŐPONTJA],10))*($B39<=Tantárgylista[BEFEJEZÉS IDŐPONTJA]),Tantárgylista[EGYEDI]),Tantárgylista[EGYEDI],0),2),0)","v":0},{"$f":"IFERROR(INDEX(Tantárgylista[],MATCH(SUMPRODUCT((Tantárgylista[NAP]=Órarend[[#Headers],[CSÜTÖRTÖK]])*(ROUNDDOWN($B39,10)>=ROUNDDOWN(Tantárgylista[KEZDÉS IDŐPONTJA],10))*($B39<=Tantárgylista[BEFEJEZÉS IDŐPONTJA]),Tantárgylista[EGYEDI]),Tantárgylista[EGYEDI],0),2),0)","v":0},{"$f":"IFERROR(INDEX(Tantárgylista[],MATCH(SUMPRODUCT((Tantárgylista[NAP]=Órarend[[#Headers],[PÉNTEK]])*(ROUNDDOWN($B39,10)>=ROUNDDOWN(Tantárgylista[KEZDÉS IDŐPONTJA],10))*($B39<=Tantárgylista[BEFEJEZÉS IDŐPONTJA]),Tantárgylista[EGYEDI]),Tantárgylista[EGYEDI],0),2),0)","v":0},{"$f":"IFERROR(INDEX(Tantárgylista[],MATCH(SUMPRODUCT((Tantárgylista[NAP]=Órarend[[#Headers],[SZOMBAT]])*(ROUNDDOWN($B39,10)>=ROUNDDOWN(Tantárgylista[KEZDÉS IDŐPONTJA],10))*($B39<=Tantárgylista[BEFEJEZÉS IDŐPONTJA]),Tantárgylista[EGYEDI]),Tantárgylista[EGYEDI],0),2),0)","v":0}]
[null,"17:00:00",{"$f":"IFERROR(INDEX(Tantárgylista[],MATCH(SUMPRODUCT((Tantárgylista[NAP]=Órarend[[#Headers],[VASÁRNAP]])*(ROUNDDOWN($B40,10)>=ROUNDDOWN(Tantárgylista[KEZDÉS IDŐPONTJA],10))*($B40<=Tantárgylista[BEFEJEZÉS IDŐPONTJA]),Tantárgylista[EGYEDI]),Tantárgylista[EGYEDI],0),2),0)","v":0},{"$f":"IFERROR(INDEX(Tantárgylista[],MATCH(SUMPRODUCT((Tantárgylista[NAP]=Órarend[[#Headers],[HÉTFŐ]])*(ROUNDDOWN($B40,10)>=ROUNDDOWN(Tantárgylista[KEZDÉS IDŐPONTJA],10))*($B40<=Tantárgylista[BEFEJEZÉS IDŐPONTJA]),Tantárgylista[EGYEDI]),Tantárgylista[EGYEDI],0),2),0)","v":"RE-111"},{"$f":"IFERROR(INDEX(Tantárgylista[],MATCH(SUMPRODUCT((Tantárgylista[NAP]=Órarend[[#Headers],[KEDD]])*(ROUNDDOWN($B40,10)>=ROUNDDOWN(Tantárgylista[KEZDÉS IDŐPONTJA],10))*($B40<=Tantárgylista[BEFEJEZÉS IDŐPONTJA]),Tantárgylista[EGYEDI]),Tantárgylista[EGYEDI],0),2),0)","v":0},{"$f":"IFERROR(INDEX(Tantárgylista[],MATCH(SUMPRODUCT((Tantárgylista[NAP]=Órarend[[#Headers],[SZERDA]])*(ROUNDDOWN($B40,10)>=ROUNDDOWN(Tantárgylista[KEZDÉS IDŐPONTJA],10))*($B40<=Tantárgylista[BEFEJEZÉS IDŐPONTJA]),Tantárgylista[EGYEDI]),Tantárgylista[EGYEDI],0),2),0)","v":0},{"$f":"IFERROR(INDEX(Tantárgylista[],MATCH(SUMPRODUCT((Tantárgylista[NAP]=Órarend[[#Headers],[CSÜTÖRTÖK]])*(ROUNDDOWN($B40,10)>=ROUNDDOWN(Tantárgylista[KEZDÉS IDŐPONTJA],10))*($B40<=Tantárgylista[BEFEJEZÉS IDŐPONTJA]),Tantárgylista[EGYEDI]),Tantárgylista[EGYEDI],0),2),0)","v":0},{"$f":"IFERROR(INDEX(Tantárgylista[],MATCH(SUMPRODUCT((Tantárgylista[NAP]=Órarend[[#Headers],[PÉNTEK]])*(ROUNDDOWN($B40,10)>=ROUNDDOWN(Tantárgylista[KEZDÉS IDŐPONTJA],10))*($B40<=Tantárgylista[BEFEJEZÉS IDŐPONTJA]),Tantárgylista[EGYEDI]),Tantárgylista[EGYEDI],0),2),0)","v":0},{"$f":"IFERROR(INDEX(Tantárgylista[],MATCH(SUMPRODUCT((Tantárgylista[NAP]=Órarend[[#Headers],[SZOMBAT]])*(ROUNDDOWN($B40,10)>=ROUNDDOWN(Tantárgylista[KEZDÉS IDŐPONTJA],10))*($B40<=Tantárgylista[BEFEJEZÉS IDŐPONTJA]),Tantárgylista[EGYEDI]),Tantárgylista[EGYEDI],0),2),0)","v":0}]
[null,"17:15:00",{"$f":"IFERROR(INDEX(Tantárgylista[],MATCH(SUMPRODUCT((Tantárgylista[NAP]=Órarend[[#Headers],[VASÁRNAP]])*(ROUNDDOWN($B41,10)>=ROUNDDOWN(Tantárgylista[KEZDÉS IDŐPONTJA],10))*($B41<=Tantárgylista[BEFEJEZÉS IDŐPONTJA]),Tantárgylista[EGYEDI]),Tantárgylista[EGYEDI],0),2),0)","v":0},{"$f":"IFERROR(INDEX(Tantárgylista[],MATCH(SUMPRODUCT((Tantárgylista[NAP]=Órarend[[#Headers],[HÉTFŐ]])*(ROUNDDOWN($B41,10)>=ROUNDDOWN(Tantárgylista[KEZDÉS IDŐPONTJA],10))*($B41<=Tantárgylista[BEFEJEZÉS IDŐPONTJA]),Tantárgylista[EGYEDI]),Tantárgylista[EGYEDI],0),2),0)","v":0},{"$f":"IFERROR(INDEX(Tantárgylista[],MATCH(SUMPRODUCT((Tantárgylista[NAP]=Órarend[[#Headers],[KEDD]])*(ROUNDDOWN($B41,10)>=ROUNDDOWN(Tantárgylista[KEZDÉS IDŐPONTJA],10))*($B41<=Tantárgylista[BEFEJEZÉS IDŐPONTJA]),Tantárgylista[EGYEDI]),Tantárgylista[EGYEDI],0),2),0)","v":0},{"$f":"IFERROR(INDEX(Tantárgylista[],MATCH(SUMPRODUCT((Tantárgylista[NAP]=Órarend[[#Headers],[SZERDA]])*(ROUNDDOWN($B41,10)>=ROUNDDOWN(Tantárgylista[KEZDÉS IDŐPONTJA],10))*($B41<=Tantárgylista[BEFEJEZÉS IDŐPONTJA]),Tantárgylista[EGYEDI]),Tantárgylista[EGYEDI],0),2),0)","v":0},{"$f":"IFERROR(INDEX(Tantárgylista[],MATCH(SUMPRODUCT((Tantárgylista[NAP]=Órarend[[#Headers],[CSÜTÖRTÖK]])*(ROUNDDOWN($B41,10)>=ROUNDDOWN(Tantárgylista[KEZDÉS IDŐPONTJA],10))*($B41<=Tantárgylista[BEFEJEZÉS IDŐPONTJA]),Tantárgylista[EGYEDI]),Tantárgylista[EGYEDI],0),2),0)","v":0},{"$f":"IFERROR(INDEX(Tantárgylista[],MATCH(SUMPRODUCT((Tantárgylista[NAP]=Órarend[[#Headers],[PÉNTEK]])*(ROUNDDOWN($B41,10)>=ROUNDDOWN(Tantárgylista[KEZDÉS IDŐPONTJA],10))*($B41<=Tantárgylista[BEFEJEZÉS IDŐPONTJA]),Tantárgylista[EGYEDI]),Tantárgylista[EGYEDI],0),2),0)","v":0},{"$f":"IFERROR(INDEX(Tantárgylista[],MATCH(SUMPRODUCT((Tantárgylista[NAP]=Órarend[[#Headers],[SZOMBAT]])*(ROUNDDOWN($B41,10)>=ROUNDDOWN(Tantárgylista[KEZDÉS IDŐPONTJA],10))*($B41<=Tantárgylista[BEFEJEZÉS IDŐPONTJA]),Tantárgylista[EGYEDI]),Tantárgylista[EGYEDI],0),2),0)","v":0}]
[null,"17:30:00",{"$f":"IFERROR(INDEX(Tantárgylista[],MATCH(SUMPRODUCT((Tantárgylista[NAP]=Órarend[[#Headers],[VASÁRNAP]])*(ROUNDDOWN($B42,10)>=ROUNDDOWN(Tantárgylista[KEZDÉS IDŐPONTJA],10))*($B42<=Tantárgylista[BEFEJEZÉS IDŐPONTJA]),Tantárgylista[EGYEDI]),Tantárgylista[EGYEDI],0),2),0)","v":0},{"$f":"IFERROR(INDEX(Tantárgylista[],MATCH(SUMPRODUCT((Tantárgylista[NAP]=Órarend[[#Headers],[HÉTFŐ]])*(ROUNDDOWN($B42,10)>=ROUNDDOWN(Tantárgylista[KEZDÉS IDŐPONTJA],10))*($B42<=Tantárgylista[BEFEJEZÉS IDŐPONTJA]),Tantárgylista[EGYEDI]),Tantárgylista[EGYEDI],0),2),0)","v":0},{"$f":"IFERROR(INDEX(Tantárgylista[],MATCH(SUMPRODUCT((Tantárgylista[NAP]=Órarend[[#Headers],[KEDD]])*(ROUNDDOWN($B42,10)>=ROUNDDOWN(Tantárgylista[KEZDÉS IDŐPONTJA],10))*($B42<=Tantárgylista[BEFEJEZÉS IDŐPONTJA]),Tantárgylista[EGYEDI]),Tantárgylista[EGYEDI],0),2),0)","v":0},{"$f":"IFERROR(INDEX(Tantárgylista[],MATCH(SUMPRODUCT((Tantárgylista[NAP]=Órarend[[#Headers],[SZERDA]])*(ROUNDDOWN($B42,10)>=ROUNDDOWN(Tantárgylista[KEZDÉS IDŐPONTJA],10))*($B42<=Tantárgylista[BEFEJEZÉS IDŐPONTJA]),Tantárgylista[EGYEDI]),Tantárgylista[EGYEDI],0),2),0)","v":0},{"$f":"IFERROR(INDEX(Tantárgylista[],MATCH(SUMPRODUCT((Tantárgylista[NAP]=Órarend[[#Headers],[CSÜTÖRTÖK]])*(ROUNDDOWN($B42,10)>=ROUNDDOWN(Tantárgylista[KEZDÉS IDŐPONTJA],10))*($B42<=Tantárgylista[BEFEJEZÉS IDŐPONTJA]),Tantárgylista[EGYEDI]),Tantárgylista[EGYEDI],0),2),0)","v":0},{"$f":"IFERROR(INDEX(Tantárgylista[],MATCH(SUMPRODUCT((Tantárgylista[NAP]=Órarend[[#Headers],[PÉNTEK]])*(ROUNDDOWN($B42,10)>=ROUNDDOWN(Tantárgylista[KEZDÉS IDŐPONTJA],10))*($B42<=Tantárgylista[BEFEJEZÉS IDŐPONTJA]),Tantárgylista[EGYEDI]),Tantárgylista[EGYEDI],0),2),0)","v":0},{"$f":"IFERROR(INDEX(Tantárgylista[],MATCH(SUMPRODUCT((Tantárgylista[NAP]=Órarend[[#Headers],[SZOMBAT]])*(ROUNDDOWN($B42,10)>=ROUNDDOWN(Tantárgylista[KEZDÉS IDŐPONTJA],10))*($B42<=Tantárgylista[BEFEJEZÉS IDŐPONTJA]),Tantárgylista[EGYEDI]),Tantárgylista[EGYEDI],0),2),0)","v":0}]
[null,"17:45:00",{"$f":"IFERROR(INDEX(Tantárgylista[],MATCH(SUMPRODUCT((Tantárgylista[NAP]=Órarend[[#Headers],[VASÁRNAP]])*(ROUNDDOWN($B43,10)>=ROUNDDOWN(Tantárgylista[KEZDÉS IDŐPONTJA],10))*($B43<=Tantárgylista[BEFEJEZÉS IDŐPONTJA]),Tantárgylista[EGYEDI]),Tantárgylista[EGYEDI],0),2),0)","v":0},{"$f":"IFERROR(INDEX(Tantárgylista[],MATCH(SUMPRODUCT((Tantárgylista[NAP]=Órarend[[#Headers],[HÉTFŐ]])*(ROUNDDOWN($B43,10)>=ROUNDDOWN(Tantárgylista[KEZDÉS IDŐPONTJA],10))*($B43<=Tantárgylista[BEFEJEZÉS IDŐPONTJA]),Tantárgylista[EGYEDI]),Tantárgylista[EGYEDI],0),2),0)","v":0},{"$f":"IFERROR(INDEX(Tantárgylista[],MATCH(SUMPRODUCT((Tantárgylista[NAP]=Órarend[[#Headers],[KEDD]])*(ROUNDDOWN($B43,10)>=ROUNDDOWN(Tantárgylista[KEZDÉS IDŐPONTJA],10))*($B43<=Tantárgylista[BEFEJEZÉS IDŐPONTJA]),Tantárgylista[EGYEDI]),Tantárgylista[EGYEDI],0),2),0)","v":0},{"$f":"IFERROR(INDEX(Tantárgylista[],MATCH(SUMPRODUCT((Tantárgylista[NAP]=Órarend[[#Headers],[SZERDA]])*(ROUNDDOWN($B43,10)>=ROUNDDOWN(Tantárgylista[KEZDÉS IDŐPONTJA],10))*($B43<=Tantárgylista[BEFEJEZÉS IDŐPONTJA]),Tantárgylista[EGYEDI]),Tantárgylista[EGYEDI],0),2),0)","v":0},{"$f":"IFERROR(INDEX(Tantárgylista[],MATCH(SUMPRODUCT((Tantárgylista[NAP]=Órarend[[#Headers],[CSÜTÖRTÖK]])*(ROUNDDOWN($B43,10)>=ROUNDDOWN(Tantárgylista[KEZDÉS IDŐPONTJA],10))*($B43<=Tantárgylista[BEFEJEZÉS IDŐPONTJA]),Tantárgylista[EGYEDI]),Tantárgylista[EGYEDI],0),2),0)","v":0},{"$f":"IFERROR(INDEX(Tantárgylista[],MATCH(SUMPRODUCT((Tantárgylista[NAP]=Órarend[[#Headers],[PÉNTEK]])*(ROUNDDOWN($B43,10)>=ROUNDDOWN(Tantárgylista[KEZDÉS IDŐPONTJA],10))*($B43<=Tantárgylista[BEFEJEZÉS IDŐPONTJA]),Tantárgylista[EGYEDI]),Tantárgylista[EGYEDI],0),2),0)","v":0},{"$f":"IFERROR(INDEX(Tantárgylista[],MATCH(SUMPRODUCT((Tantárgylista[NAP]=Órarend[[#Headers],[SZOMBAT]])*(ROUNDDOWN($B43,10)>=ROUNDDOWN(Tantárgylista[KEZDÉS IDŐPONTJA],10))*($B43<=Tantárgylista[BEFEJEZÉS IDŐPONTJA]),Tantárgylista[EGYEDI]),Tantárgylista[EGYEDI],0),2),0)","v":0}]
[null,"18:00:00",{"$f":"IFERROR(INDEX(Tantárgylista[],MATCH(SUMPRODUCT((Tantárgylista[NAP]=Órarend[[#Headers],[VASÁRNAP]])*(ROUNDDOWN($B44,10)>=ROUNDDOWN(Tantárgylista[KEZDÉS IDŐPONTJA],10))*($B44<=Tantárgylista[BEFEJEZÉS IDŐPONTJA]),Tantárgylista[EGYEDI]),Tantárgylista[EGYEDI],0),2),0)","v":0},{"$f":"IFERROR(INDEX(Tantárgylista[],MATCH(SUMPRODUCT((Tantárgylista[NAP]=Órarend[[#Headers],[HÉTFŐ]])*(ROUNDDOWN($B44,10)>=ROUNDDOWN(Tantárgylista[KEZDÉS IDŐPONTJA],10))*($B44<=Tantárgylista[BEFEJEZÉS IDŐPONTJA]),Tantárgylista[EGYEDI]),Tantárgylista[EGYEDI],0),2),0)","v":0},{"$f":"IFERROR(INDEX(Tantárgylista[],MATCH(SUMPRODUCT((Tantárgylista[NAP]=Órarend[[#Headers],[KEDD]])*(ROUNDDOWN($B44,10)>=ROUNDDOWN(Tantárgylista[KEZDÉS IDŐPONTJA],10))*($B44<=Tantárgylista[BEFEJEZÉS IDŐPONTJA]),Tantárgylista[EGYEDI]),Tantárgylista[EGYEDI],0),2),0)","v":0},{"$f":"IFERROR(INDEX(Tantárgylista[],MATCH(SUMPRODUCT((Tantárgylista[NAP]=Órarend[[#Headers],[SZERDA]])*(ROUNDDOWN($B44,10)>=ROUNDDOWN(Tantárgylista[KEZDÉS IDŐPONTJA],10))*($B44<=Tantárgylista[BEFEJEZÉS IDŐPONTJA]),Tantárgylista[EGYEDI]),Tantárgylista[EGYEDI],0),2),0)","v":0},{"$f":"IFERROR(INDEX(Tantárgylista[],MATCH(SUMPRODUCT((Tantárgylista[NAP]=Órarend[[#Headers],[CSÜTÖRTÖK]])*(ROUNDDOWN($B44,10)>=ROUNDDOWN(Tantárgylista[KEZDÉS IDŐPONTJA],10))*($B44<=Tantárgylista[BEFEJEZÉS IDŐPONTJA]),Tantárgylista[EGYEDI]),Tantárgylista[EGYEDI],0),2),0)","v":0},{"$f":"IFERROR(INDEX(Tantárgylista[],MATCH(SUMPRODUCT((Tantárgylista[NAP]=Órarend[[#Headers],[PÉNTEK]])*(ROUNDDOWN($B44,10)>=ROUNDDOWN(Tantárgylista[KEZDÉS IDŐPONTJA],10))*($B44<=Tantárgylista[BEFEJEZÉS IDŐPONTJA]),Tantárgylista[EGYEDI]),Tantárgylista[EGYEDI],0),2),0)","v":0},{"$f":"IFERROR(INDEX(Tantárgylista[],MATCH(SUMPRODUCT((Tantárgylista[NAP]=Órarend[[#Headers],[SZOMBAT]])*(ROUNDDOWN($B44,10)>=ROUNDDOWN(Tantárgylista[KEZDÉS IDŐPONTJA],10))*($B44<=Tantárgylista[BEFEJEZÉS IDŐPONTJA]),Tantárgylista[EGYEDI]),Tantárgylista[EGYEDI],0),2),0)","v":0}]
[null,"18:15:00",{"$f":"IFERROR(INDEX(Tantárgylista[],MATCH(SUMPRODUCT((Tantárgylista[NAP]=Órarend[[#Headers],[VASÁRNAP]])*(ROUNDDOWN($B45,10)>=ROUNDDOWN(Tantárgylista[KEZDÉS IDŐPONTJA],10))*($B45<=Tantárgylista[BEFEJEZÉS IDŐPONTJA]),Tantárgylista[EGYEDI]),Tantárgylista[EGYEDI],0),2),0)","v":0},{"$f":"IFERROR(INDEX(Tantárgylista[],MATCH(SUMPRODUCT((Tantárgylista[NAP]=Órarend[[#Headers],[HÉTFŐ]])*(ROUNDDOWN($B45,10)>=ROUNDDOWN(Tantárgylista[KEZDÉS IDŐPONTJA],10))*($B45<=Tantárgylista[BEFEJEZÉS IDŐPONTJA]),Tantárgylista[EGYEDI]),Tantárgylista[EGYEDI],0),2),0)","v":0},{"$f":"IFERROR(INDEX(Tantárgylista[],MATCH(SUMPRODUCT((Tantárgylista[NAP]=Órarend[[#Headers],[KEDD]])*(ROUNDDOWN($B45,10)>=ROUNDDOWN(Tantárgylista[KEZDÉS IDŐPONTJA],10))*($B45<=Tantárgylista[BEFEJEZÉS IDŐPONTJA]),Tantárgylista[EGYEDI]),Tantárgylista[EGYEDI],0),2),0)","v":0},{"$f":"IFERROR(INDEX(Tantárgylista[],MATCH(SUMPRODUCT((Tantárgylista[NAP]=Órarend[[#Headers],[SZERDA]])*(ROUNDDOWN($B45,10)>=ROUNDDOWN(Tantárgylista[KEZDÉS IDŐPONTJA],10))*($B45<=Tantárgylista[BEFEJEZÉS IDŐPONTJA]),Tantárgylista[EGYEDI]),Tantárgylista[EGYEDI],0),2),0)","v":0},{"$f":"IFERROR(INDEX(Tantárgylista[],MATCH(SUMPRODUCT((Tantárgylista[NAP]=Órarend[[#Headers],[CSÜTÖRTÖK]])*(ROUNDDOWN($B45,10)>=ROUNDDOWN(Tantárgylista[KEZDÉS IDŐPONTJA],10))*($B45<=Tantárgylista[BEFEJEZÉS IDŐPONTJA]),Tantárgylista[EGYEDI]),Tantárgylista[EGYEDI],0),2),0)","v":0},{"$f":"IFERROR(INDEX(Tantárgylista[],MATCH(SUMPRODUCT((Tantárgylista[NAP]=Órarend[[#Headers],[PÉNTEK]])*(ROUNDDOWN($B45,10)>=ROUNDDOWN(Tantárgylista[KEZDÉS IDŐPONTJA],10))*($B45<=Tantárgylista[BEFEJEZÉS IDŐPONTJA]),Tantárgylista[EGYEDI]),Tantárgylista[EGYEDI],0),2),0)","v":0},{"$f":"IFERROR(INDEX(Tantárgylista[],MATCH(SUMPRODUCT((Tantárgylista[NAP]=Órarend[[#Headers],[SZOMBAT]])*(ROUNDDOWN($B45,10)>=ROUNDDOWN(Tantárgylista[KEZDÉS IDŐPONTJA],10))*($B45<=Tantárgylista[BEFEJEZÉS IDŐPONTJA]),Tantárgylista[EGYEDI]),Tantárgylista[EGYEDI],0),2),0)","v":0}]
[null,"18:30:00",{"$f":"IFERROR(INDEX(Tantárgylista[],MATCH(SUMPRODUCT((Tantárgylista[NAP]=Órarend[[#Headers],[VASÁRNAP]])*(ROUNDDOWN($B46,10)>=ROUNDDOWN(Tantárgylista[KEZDÉS IDŐPONTJA],10))*($B46<=Tantárgylista[BEFEJEZÉS IDŐPONTJA]),Tantárgylista[EGYEDI]),Tantárgylista[EGYEDI],0),2),0)","v":0},{"$f":"IFERROR(INDEX(Tantárgylista[],MATCH(SUMPRODUCT((Tantárgylista[NAP]=Órarend[[#Headers],[HÉTFŐ]])*(ROUNDDOWN($B46,10)>=ROUNDDOWN(Tantárgylista[KEZDÉS IDŐPONTJA],10))*($B46<=Tantárgylista[BEFEJEZÉS IDŐPONTJA]),Tantárgylista[EGYEDI]),Tantárgylista[EGYEDI],0),2),0)","v":0},{"$f":"IFERROR(INDEX(Tantárgylista[],MATCH(SUMPRODUCT((Tantárgylista[NAP]=Órarend[[#Headers],[KEDD]])*(ROUNDDOWN($B46,10)>=ROUNDDOWN(Tantárgylista[KEZDÉS IDŐPONTJA],10))*($B46<=Tantárgylista[BEFEJEZÉS IDŐPONTJA]),Tantárgylista[EGYEDI]),Tantárgylista[EGYEDI],0),2),0)","v":0},{"$f":"IFERROR(INDEX(Tantárgylista[],MATCH(SUMPRODUCT((Tantárgylista[NAP]=Órarend[[#Headers],[SZERDA]])*(ROUNDDOWN($B46,10)>=ROUNDDOWN(Tantárgylista[KEZDÉS IDŐPONTJA],10))*($B46<=Tantárgylista[BEFEJEZÉS IDŐPONTJA]),Tantárgylista[EGYEDI]),Tantárgylista[EGYEDI],0),2),0)","v":0},{"$f":"IFERROR(INDEX(Tantárgylista[],MATCH(SUMPRODUCT((Tantárgylista[NAP]=Órarend[[#Headers],[CSÜTÖRTÖK]])*(ROUNDDOWN($B46,10)>=ROUNDDOWN(Tantárgylista[KEZDÉS IDŐPONTJA],10))*($B46<=Tantárgylista[BEFEJEZÉS IDŐPONTJA]),Tantárgylista[EGYEDI]),Tantárgylista[EGYEDI],0),2),0)","v":0},{"$f":"IFERROR(INDEX(Tantárgylista[],MATCH(SUMPRODUCT((Tantárgylista[NAP]=Órarend[[#Headers],[PÉNTEK]])*(ROUNDDOWN($B46,10)>=ROUNDDOWN(Tantárgylista[KEZDÉS IDŐPONTJA],10))*($B46<=Tantárgylista[BEFEJEZÉS IDŐPONTJA]),Tantárgylista[EGYEDI]),Tantárgylista[EGYEDI],0),2),0)","v":0},{"$f":"IFERROR(INDEX(Tantárgylista[],MATCH(SUMPRODUCT((Tantárgylista[NAP]=Órarend[[#Headers],[SZOMBAT]])*(ROUNDDOWN($B46,10)>=ROUNDDOWN(Tantárgylista[KEZDÉS IDŐPONTJA],10))*($B46<=Tantárgylista[BEFEJEZÉS IDŐPONTJA]),Tantárgylista[EGYEDI]),Tantárgylista[EGYEDI],0),2),0)","v":0}]
[null,"18:45:00",{"$f":"IFERROR(INDEX(Tantárgylista[],MATCH(SUMPRODUCT((Tantárgylista[NAP]=Órarend[[#Headers],[VASÁRNAP]])*(ROUNDDOWN($B47,10)>=ROUNDDOWN(Tantárgylista[KEZDÉS IDŐPONTJA],10))*($B47<=Tantárgylista[BEFEJEZÉS IDŐPONTJA]),Tantárgylista[EGYEDI]),Tantárgylista[EGYEDI],0),2),0)","v":0},{"$f":"IFERROR(INDEX(Tantárgylista[],MATCH(SUMPRODUCT((Tantárgylista[NAP]=Órarend[[#Headers],[HÉTFŐ]])*(ROUNDDOWN($B47,10)>=ROUNDDOWN(Tantárgylista[KEZDÉS IDŐPONTJA],10))*($B47<=Tantárgylista[BEFEJEZÉS IDŐPONTJA]),Tantárgylista[EGYEDI]),Tantárgylista[EGYEDI],0),2),0)","v":0},{"$f":"IFERROR(INDEX(Tantárgylista[],MATCH(SUMPRODUCT((Tantárgylista[NAP]=Órarend[[#Headers],[KEDD]])*(ROUNDDOWN($B47,10)>=ROUNDDOWN(Tantárgylista[KEZDÉS IDŐPONTJA],10))*($B47<=Tantárgylista[BEFEJEZÉS IDŐPONTJA]),Tantárgylista[EGYEDI]),Tantárgylista[EGYEDI],0),2),0)","v":0},{"$f":"IFERROR(INDEX(Tantárgylista[],MATCH(SUMPRODUCT((Tantárgylista[NAP]=Órarend[[#Headers],[SZERDA]])*(ROUNDDOWN($B47,10)>=ROUNDDOWN(Tantárgylista[KEZDÉS IDŐPONTJA],10))*($B47<=Tantárgylista[BEFEJEZÉS IDŐPONTJA]),Tantárgylista[EGYEDI]),Tantárgylista[EGYEDI],0),2),0)","v":0},{"$f":"IFERROR(INDEX(Tantárgylista[],MATCH(SUMPRODUCT((Tantárgylista[NAP]=Órarend[[#Headers],[CSÜTÖRTÖK]])*(ROUNDDOWN($B47,10)>=ROUNDDOWN(Tantárgylista[KEZDÉS IDŐPONTJA],10))*($B47<=Tantárgylista[BEFEJEZÉS IDŐPONTJA]),Tantárgylista[EGYEDI]),Tantárgylista[EGYEDI],0),2),0)","v":0},{"$f":"IFERROR(INDEX(Tantárgylista[],MATCH(SUMPRODUCT((Tantárgylista[NAP]=Órarend[[#Headers],[PÉNTEK]])*(ROUNDDOWN($B47,10)>=ROUNDDOWN(Tantárgylista[KEZDÉS IDŐPONTJA],10))*($B47<=Tantárgylista[BEFEJEZÉS IDŐPONTJA]),Tantárgylista[EGYEDI]),Tantárgylista[EGYEDI],0),2),0)","v":0},{"$f":"IFERROR(INDEX(Tantárgylista[],MATCH(SUMPRODUCT((Tantárgylista[NAP]=Órarend[[#Headers],[SZOMBAT]])*(ROUNDDOWN($B47,10)>=ROUNDDOWN(Tantárgylista[KEZDÉS IDŐPONTJA],10))*($B47<=Tantárgylista[BEFEJEZÉS IDŐPONTJA]),Tantárgylista[EGYEDI]),Tantárgylista[EGYEDI],0),2),0)","v":0}]
[null,"19:00:00",{"$f":"IFERROR(INDEX(Tantárgylista[],MATCH(SUMPRODUCT((Tantárgylista[NAP]=Órarend[[#Headers],[VASÁRNAP]])*(ROUNDDOWN($B48,10)>=ROUNDDOWN(Tantárgylista[KEZDÉS IDŐPONTJA],10))*($B48<=Tantárgylista[BEFEJEZÉS IDŐPONTJA]),Tantárgylista[EGYEDI]),Tantárgylista[EGYEDI],0),2),0)","v":0},{"$f":"IFERROR(INDEX(Tantárgylista[],MATCH(SUMPRODUCT((Tantárgylista[NAP]=Órarend[[#Headers],[HÉTFŐ]])*(ROUNDDOWN($B48,10)>=ROUNDDOWN(Tantárgylista[KEZDÉS IDŐPONTJA],10))*($B48<=Tantárgylista[BEFEJEZÉS IDŐPONTJA]),Tantárgylista[EGYEDI]),Tantárgylista[EGYEDI],0),2),0)","v":0},{"$f":"IFERROR(INDEX(Tantárgylista[],MATCH(SUMPRODUCT((Tantárgylista[NAP]=Órarend[[#Headers],[KEDD]])*(ROUNDDOWN($B48,10)>=ROUNDDOWN(Tantárgylista[KEZDÉS IDŐPONTJA],10))*($B48<=Tantárgylista[BEFEJEZÉS IDŐPONTJA]),Tantárgylista[EGYEDI]),Tantárgylista[EGYEDI],0),2),0)","v":0},{"$f":"IFERROR(INDEX(Tantárgylista[],MATCH(SUMPRODUCT((Tantárgylista[NAP]=Órarend[[#Headers],[SZERDA]])*(ROUNDDOWN($B48,10)>=ROUNDDOWN(Tantárgylista[KEZDÉS IDŐPONTJA],10))*($B48<=Tantárgylista[BEFEJEZÉS IDŐPONTJA]),Tantárgylista[EGYEDI]),Tantárgylista[EGYEDI],0),2),0)","v":0},{"$f":"IFERROR(INDEX(Tantárgylista[],MATCH(SUMPRODUCT((Tantárgylista[NAP]=Órarend[[#Headers],[CSÜTÖRTÖK]])*(ROUNDDOWN($B48,10)>=ROUNDDOWN(Tantárgylista[KEZDÉS IDŐPONTJA],10))*($B48<=Tantárgylista[BEFEJEZÉS IDŐPONTJA]),Tantárgylista[EGYEDI]),Tantárgylista[EGYEDI],0),2),0)","v":0},{"$f":"IFERROR(INDEX(Tantárgylista[],MATCH(SUMPRODUCT((Tantárgylista[NAP]=Órarend[[#Headers],[PÉNTEK]])*(ROUNDDOWN($B48,10)>=ROUNDDOWN(Tantárgylista[KEZDÉS IDŐPONTJA],10))*($B48<=Tantárgylista[BEFEJEZÉS IDŐPONTJA]),Tantárgylista[EGYEDI]),Tantárgylista[EGYEDI],0),2),0)","v":0},{"$f":"IFERROR(INDEX(Tantárgylista[],MATCH(SUMPRODUCT((Tantárgylista[NAP]=Órarend[[#Headers],[SZOMBAT]])*(ROUNDDOWN($B48,10)>=ROUNDDOWN(Tantárgylista[KEZDÉS IDŐPONTJA],10))*($B48<=Tantárgylista[BEFEJEZÉS IDŐPONTJA]),Tantárgylista[EGYEDI]),Tantárgylista[EGYEDI],0),2),0)","v":0}]
[null,"19:15:00",{"$f":"IFERROR(INDEX(Tantárgylista[],MATCH(SUMPRODUCT((Tantárgylista[NAP]=Órarend[[#Headers],[VASÁRNAP]])*(ROUNDDOWN($B49,10)>=ROUNDDOWN(Tantárgylista[KEZDÉS IDŐPONTJA],10))*($B49<=Tantárgylista[BEFEJEZÉS IDŐPONTJA]),Tantárgylista[EGYEDI]),Tantárgylista[EGYEDI],0),2),0)","v":0},{"$f":"IFERROR(INDEX(Tantárgylista[],MATCH(SUMPRODUCT((Tantárgylista[NAP]=Órarend[[#Headers],[HÉTFŐ]])*(ROUNDDOWN($B49,10)>=ROUNDDOWN(Tantárgylista[KEZDÉS IDŐPONTJA],10))*($B49<=Tantárgylista[BEFEJEZÉS IDŐPONTJA]),Tantárgylista[EGYEDI]),Tantárgylista[EGYEDI],0),2),0)","v":0},{"$f":"IFERROR(INDEX(Tantárgylista[],MATCH(SUMPRODUCT((Tantárgylista[NAP]=Órarend[[#Headers],[KEDD]])*(ROUNDDOWN($B49,10)>=ROUNDDOWN(Tantárgylista[KEZDÉS IDŐPONTJA],10))*($B49<=Tantárgylista[BEFEJEZÉS IDŐPONTJA]),Tantárgylista[EGYEDI]),Tantárgylista[EGYEDI],0),2),0)","v":0},{"$f":"IFERROR(INDEX(Tantárgylista[],MATCH(SUMPRODUCT((Tantárgylista[NAP]=Órarend[[#Headers],[SZERDA]])*(ROUNDDOWN($B49,10)>=ROUNDDOWN(Tantárgylista[KEZDÉS IDŐPONTJA],10))*($B49<=Tantárgylista[BEFEJEZÉS IDŐPONTJA]),Tantárgylista[EGYEDI]),Tantárgylista[EGYEDI],0),2),0)","v":0},{"$f":"IFERROR(INDEX(Tantárgylista[],MATCH(SUMPRODUCT((Tantárgylista[NAP]=Órarend[[#Headers],[CSÜTÖRTÖK]])*(ROUNDDOWN($B49,10)>=ROUNDDOWN(Tantárgylista[KEZDÉS IDŐPONTJA],10))*($B49<=Tantárgylista[BEFEJEZÉS IDŐPONTJA]),Tantárgylista[EGYEDI]),Tantárgylista[EGYEDI],0),2),0)","v":0},{"$f":"IFERROR(INDEX(Tantárgylista[],MATCH(SUMPRODUCT((Tantárgylista[NAP]=Órarend[[#Headers],[PÉNTEK]])*(ROUNDDOWN($B49,10)>=ROUNDDOWN(Tantárgylista[KEZDÉS IDŐPONTJA],10))*($B49<=Tantárgylista[BEFEJEZÉS IDŐPONTJA]),Tantárgylista[EGYEDI]),Tantárgylista[EGYEDI],0),2),0)","v":0},{"$f":"IFERROR(INDEX(Tantárgylista[],MATCH(SUMPRODUCT((Tantárgylista[NAP]=Órarend[[#Headers],[SZOMBAT]])*(ROUNDDOWN($B49,10)>=ROUNDDOWN(Tantárgylista[KEZDÉS IDŐPONTJA],10))*($B49<=Tantárgylista[BEFEJEZÉS IDŐPONTJA]),Tantárgylista[EGYEDI]),Tantárgylista[EGYEDI],0),2),0)","v":0}]
[null,"19:30:00",{"$f":"IFERROR(INDEX(Tantárgylista[],MATCH(SUMPRODUCT((Tantárgylista[NAP]=Órarend[[#Headers],[VASÁRNAP]])*(ROUNDDOWN($B50,10)>=ROUNDDOWN(Tantárgylista[KEZDÉS IDŐPONTJA],10))*($B50<=Tantárgylista[BEFEJEZÉS IDŐPONTJA]),Tantárgylista[EGYEDI]),Tantárgylista[EGYEDI],0),2),0)","v":0},{"$f":"IFERROR(INDEX(Tantárgylista[],MATCH(SUMPRODUCT((Tantárgylista[NAP]=Órarend[[#Headers],[HÉTFŐ]])*(ROUNDDOWN($B50,10)>=ROUNDDOWN(Tantárgylista[KEZDÉS IDŐPONTJA],10))*($B50<=Tantárgylista[BEFEJEZÉS IDŐPONTJA]),Tantárgylista[EGYEDI]),Tantárgylista[EGYEDI],0),2),0)","v":0},{"$f":"IFERROR(INDEX(Tantárgylista[],MATCH(SUMPRODUCT((Tantárgylista[NAP]=Órarend[[#Headers],[KEDD]])*(ROUNDDOWN($B50,10)>=ROUNDDOWN(Tantárgylista[KEZDÉS IDŐPONTJA],10))*($B50<=Tantárgylista[BEFEJEZÉS IDŐPONTJA]),Tantárgylista[EGYEDI]),Tantárgylista[EGYEDI],0),2),0)","v":0},{"$f":"IFERROR(INDEX(Tantárgylista[],MATCH(SUMPRODUCT((Tantárgylista[NAP]=Órarend[[#Headers],[SZERDA]])*(ROUNDDOWN($B50,10)>=ROUNDDOWN(Tantárgylista[KEZDÉS IDŐPONTJA],10))*($B50<=Tantárgylista[BEFEJEZÉS IDŐPONTJA]),Tantárgylista[EGYEDI]),Tantárgylista[EGYEDI],0),2),0)","v":0},{"$f":"IFERROR(INDEX(Tantárgylista[],MATCH(SUMPRODUCT((Tantárgylista[NAP]=Órarend[[#Headers],[CSÜTÖRTÖK]])*(ROUNDDOWN($B50,10)>=ROUNDDOWN(Tantárgylista[KEZDÉS IDŐPONTJA],10))*($B50<=Tantárgylista[BEFEJEZÉS IDŐPONTJA]),Tantárgylista[EGYEDI]),Tantárgylista[EGYEDI],0),2),0)","v":0},{"$f":"IFERROR(INDEX(Tantárgylista[],MATCH(SUMPRODUCT((Tantárgylista[NAP]=Órarend[[#Headers],[PÉNTEK]])*(ROUNDDOWN($B50,10)>=ROUNDDOWN(Tantárgylista[KEZDÉS IDŐPONTJA],10))*($B50<=Tantárgylista[BEFEJEZÉS IDŐPONTJA]),Tantárgylista[EGYEDI]),Tantárgylista[EGYEDI],0),2),0)","v":0},{"$f":"IFERROR(INDEX(Tantárgylista[],MATCH(SUMPRODUCT((Tantárgylista[NAP]=Órarend[[#Headers],[SZOMBAT]])*(ROUNDDOWN($B50,10)>=ROUNDDOWN(Tantárgylista[KEZDÉS IDŐPONTJA],10))*($B50<=Tantárgylista[BEFEJEZÉS IDŐPONTJA]),Tantárgylista[EGYEDI]),Tantárgylista[EGYEDI],0),2),0)","v":0}]
[null,"19:45:00",{"$f":"IFERROR(INDEX(Tantárgylista[],MATCH(SUMPRODUCT((Tantárgylista[NAP]=Órarend[[#Headers],[VASÁRNAP]])*(ROUNDDOWN($B51,10)>=ROUNDDOWN(Tantárgylista[KEZDÉS IDŐPONTJA],10))*($B51<=Tantárgylista[BEFEJEZÉS IDŐPONTJA]),Tantárgylista[EGYEDI]),Tantárgylista[EGYEDI],0),2),0)","v":0},{"$f":"IFERROR(INDEX(Tantárgylista[],MATCH(SUMPRODUCT((Tantárgylista[NAP]=Órarend[[#Headers],[HÉTFŐ]])*(ROUNDDOWN($B51,10)>=ROUNDDOWN(Tantárgylista[KEZDÉS IDŐPONTJA],10))*($B51<=Tantárgylista[BEFEJEZÉS IDŐPONTJA]),Tantárgylista[EGYEDI]),Tantárgylista[EGYEDI],0),2),0)","v":0},{"$f":"IFERROR(INDEX(Tantárgylista[],MATCH(SUMPRODUCT((Tantárgylista[NAP]=Órarend[[#Headers],[KEDD]])*(ROUNDDOWN($B51,10)>=ROUNDDOWN(Tantárgylista[KEZDÉS IDŐPONTJA],10))*($B51<=Tantárgylista[BEFEJEZÉS IDŐPONTJA]),Tantárgylista[EGYEDI]),Tantárgylista[EGYEDI],0),2),0)","v":0},{"$f":"IFERROR(INDEX(Tantárgylista[],MATCH(SUMPRODUCT((Tantárgylista[NAP]=Órarend[[#Headers],[SZERDA]])*(ROUNDDOWN($B51,10)>=ROUNDDOWN(Tantárgylista[KEZDÉS IDŐPONTJA],10))*($B51<=Tantárgylista[BEFEJEZÉS IDŐPONTJA]),Tantárgylista[EGYEDI]),Tantárgylista[EGYEDI],0),2),0)","v":0},{"$f":"IFERROR(INDEX(Tantárgylista[],MATCH(SUMPRODUCT((Tantárgylista[NAP]=Órarend[[#Headers],[CSÜTÖRTÖK]])*(ROUNDDOWN($B51,10)>=ROUNDDOWN(Tantárgylista[KEZDÉS IDŐPONTJA],10))*($B51<=Tantárgylista[BEFEJEZÉS IDŐPONTJA]),Tantárgylista[EGYEDI]),Tantárgylista[EGYEDI],0),2),0)","v":0},{"$f":"IFERROR(INDEX(Tantárgylista[],MATCH(SUMPRODUCT((Tantárgylista[NAP]=Órarend[[#Headers],[PÉNTEK]])*(ROUNDDOWN($B51,10)>=ROUNDDOWN(Tantárgylista[KEZDÉS IDŐPONTJA],10))*($B51<=Tantárgylista[BEFEJEZÉS IDŐPONTJA]),Tantárgylista[EGYEDI]),Tantárgylista[EGYEDI],0),2),0)","v":0},{"$f":"IFERROR(INDEX(Tantárgylista[],MATCH(SUMPRODUCT((Tantárgylista[NAP]=Órarend[[#Headers],[SZOMBAT]])*(ROUNDDOWN($B51,10)>=ROUNDDOWN(Tantárgylista[KEZDÉS IDŐPONTJA],10))*($B51<=Tantárgylista[BEFEJEZÉS IDŐPONTJA]),Tantárgylista[EGYEDI]),Tantárgylista[EGYEDI],0),2),0)","v":0}]
[null,"20:00:00",{"$f":"IFERROR(INDEX(Tantárgylista[],MATCH(SUMPRODUCT((Tantárgylista[NAP]=Órarend[[#Headers],[VASÁRNAP]])*(ROUNDDOWN($B52,10)>=ROUNDDOWN(Tantárgylista[KEZDÉS IDŐPONTJA],10))*($B52<=Tantárgylista[BEFEJEZÉS IDŐPONTJA]),Tantárgylista[EGYEDI]),Tantárgylista[EGYEDI],0),2),0)","v":0},{"$f":"IFERROR(INDEX(Tantárgylista[],MATCH(SUMPRODUCT((Tantárgylista[NAP]=Órarend[[#Headers],[HÉTFŐ]])*(ROUNDDOWN($B52,10)>=ROUNDDOWN(Tantárgylista[KEZDÉS IDŐPONTJA],10))*($B52<=Tantárgylista[BEFEJEZÉS IDŐPONTJA]),Tantárgylista[EGYEDI]),Tantárgylista[EGYEDI],0),2),0)","v":0},{"$f":"IFERROR(INDEX(Tantárgylista[],MATCH(SUMPRODUCT((Tantárgylista[NAP]=Órarend[[#Headers],[KEDD]])*(ROUNDDOWN($B52,10)>=ROUNDDOWN(Tantárgylista[KEZDÉS IDŐPONTJA],10))*($B52<=Tantárgylista[BEFEJEZÉS IDŐPONTJA]),Tantárgylista[EGYEDI]),Tantárgylista[EGYEDI],0),2),0)","v":0},{"$f":"IFERROR(INDEX(Tantárgylista[],MATCH(SUMPRODUCT((Tantárgylista[NAP]=Órarend[[#Headers],[SZERDA]])*(ROUNDDOWN($B52,10)>=ROUNDDOWN(Tantárgylista[KEZDÉS IDŐPONTJA],10))*($B52<=Tantárgylista[BEFEJEZÉS IDŐPONTJA]),Tantárgylista[EGYEDI]),Tantárgylista[EGYEDI],0),2),0)","v":0},{"$f":"IFERROR(INDEX(Tantárgylista[],MATCH(SUMPRODUCT((Tantárgylista[NAP]=Órarend[[#Headers],[CSÜTÖRTÖK]])*(ROUNDDOWN($B52,10)>=ROUNDDOWN(Tantárgylista[KEZDÉS IDŐPONTJA],10))*($B52<=Tantárgylista[BEFEJEZÉS IDŐPONTJA]),Tantárgylista[EGYEDI]),Tantárgylista[EGYEDI],0),2),0)","v":0},{"$f":"IFERROR(INDEX(Tantárgylista[],MATCH(SUMPRODUCT((Tantárgylista[NAP]=Órarend[[#Headers],[PÉNTEK]])*(ROUNDDOWN($B52,10)>=ROUNDDOWN(Tantárgylista[KEZDÉS IDŐPONTJA],10))*($B52<=Tantárgylista[BEFEJEZÉS IDŐPONTJA]),Tantárgylista[EGYEDI]),Tantárgylista[EGYEDI],0),2),0)","v":0},{"$f":"IFERROR(INDEX(Tantárgylista[],MATCH(SUMPRODUCT((Tantárgylista[NAP]=Órarend[[#Headers],[SZOMBAT]])*(ROUNDDOWN($B52,10)>=ROUNDDOWN(Tantárgylista[KEZDÉS IDŐPONTJA],10))*($B52<=Tantárgylista[BEFEJEZÉS IDŐPONTJA]),Tantárgylista[EGYEDI]),Tantárgylista[EGYEDI],0),2),0)","v":0}]
[null,"20:15:00",{"$f":"IFERROR(INDEX(Tantárgylista[],MATCH(SUMPRODUCT((Tantárgylista[NAP]=Órarend[[#Headers],[VASÁRNAP]])*(ROUNDDOWN($B53,10)>=ROUNDDOWN(Tantárgylista[KEZDÉS IDŐPONTJA],10))*($B53<=Tantárgylista[BEFEJEZÉS IDŐPONTJA]),Tantárgylista[EGYEDI]),Tantárgylista[EGYEDI],0),2),0)","v":0},{"$f":"IFERROR(INDEX(Tantárgylista[],MATCH(SUMPRODUCT((Tantárgylista[NAP]=Órarend[[#Headers],[HÉTFŐ]])*(ROUNDDOWN($B53,10)>=ROUNDDOWN(Tantárgylista[KEZDÉS IDŐPONTJA],10))*($B53<=Tantárgylista[BEFEJEZÉS IDŐPONTJA]),Tantárgylista[EGYEDI]),Tantárgylista[EGYEDI],0),2),0)","v":0},{"$f":"IFERROR(INDEX(Tantárgylista[],MATCH(SUMPRODUCT((Tantárgylista[NAP]=Órarend[[#Headers],[KEDD]])*(ROUNDDOWN($B53,10)>=ROUNDDOWN(Tantárgylista[KEZDÉS IDŐPONTJA],10))*($B53<=Tantárgylista[BEFEJEZÉS IDŐPONTJA]),Tantárgylista[EGYEDI]),Tantárgylista[EGYEDI],0),2),0)","v":0},{"$f":"IFERROR(INDEX(Tantárgylista[],MATCH(SUMPRODUCT((Tantárgylista[NAP]=Órarend[[#Headers],[SZERDA]])*(ROUNDDOWN($B53,10)>=ROUNDDOWN(Tantárgylista[KEZDÉS IDŐPONTJA],10))*($B53<=Tantárgylista[BEFEJEZÉS IDŐPONTJA]),Tantárgylista[EGYEDI]),Tantárgylista[EGYEDI],0),2),0)","v":0},{"$f":"IFERROR(INDEX(Tantárgylista[],MATCH(SUMPRODUCT((Tantárgylista[NAP]=Órarend[[#Headers],[CSÜTÖRTÖK]])*(ROUNDDOWN($B53,10)>=ROUNDDOWN(Tantárgylista[KEZDÉS IDŐPONTJA],10))*($B53<=Tantárgylista[BEFEJEZÉS IDŐPONTJA]),Tantárgylista[EGYEDI]),Tantárgylista[EGYEDI],0),2),0)","v":0},{"$f":"IFERROR(INDEX(Tantárgylista[],MATCH(SUMPRODUCT((Tantárgylista[NAP]=Órarend[[#Headers],[PÉNTEK]])*(ROUNDDOWN($B53,10)>=ROUNDDOWN(Tantárgylista[KEZDÉS IDŐPONTJA],10))*($B53<=Tantárgylista[BEFEJEZÉS IDŐPONTJA]),Tantárgylista[EGYEDI]),Tantárgylista[EGYEDI],0),2),0)","v":0},{"$f":"IFERROR(INDEX(Tantárgylista[],MATCH(SUMPRODUCT((Tantárgylista[NAP]=Órarend[[#Headers],[SZOMBAT]])*(ROUNDDOWN($B53,10)>=ROUNDDOWN(Tantárgylista[KEZDÉS IDŐPONTJA],10))*($B53<=Tantárgylista[BEFEJEZÉS IDŐPONTJA]),Tantárgylista[EGYEDI]),Tantárgylista[EGYEDI],0),2),0)","v":0}]
[null,"20:30:00",{"$f":"IFERROR(INDEX(Tantárgylista[],MATCH(SUMPRODUCT((Tantárgylista[NAP]=Órarend[[#Headers],[VASÁRNAP]])*(ROUNDDOWN($B54,10)>=ROUNDDOWN(Tantárgylista[KEZDÉS IDŐPONTJA],10))*($B54<=Tantárgylista[BEFEJEZÉS IDŐPONTJA]),Tantárgylista[EGYEDI]),Tantárgylista[EGYEDI],0),2),0)","v":0},{"$f":"IFERROR(INDEX(Tantárgylista[],MATCH(SUMPRODUCT((Tantárgylista[NAP]=Órarend[[#Headers],[HÉTFŐ]])*(ROUNDDOWN($B54,10)>=ROUNDDOWN(Tantárgylista[KEZDÉS IDŐPONTJA],10))*($B54<=Tantárgylista[BEFEJEZÉS IDŐPONTJA]),Tantárgylista[EGYEDI]),Tantárgylista[EGYEDI],0),2),0)","v":0},{"$f":"IFERROR(INDEX(Tantárgylista[],MATCH(SUMPRODUCT((Tantárgylista[NAP]=Órarend[[#Headers],[KEDD]])*(ROUNDDOWN($B54,10)>=ROUNDDOWN(Tantárgylista[KEZDÉS IDŐPONTJA],10))*($B54<=Tantárgylista[BEFEJEZÉS IDŐPONTJA]),Tantárgylista[EGYEDI]),Tantárgylista[EGYEDI],0),2),0)","v":0},{"$f":"IFERROR(INDEX(Tantárgylista[],MATCH(SUMPRODUCT((Tantárgylista[NAP]=Órarend[[#Headers],[SZERDA]])*(ROUNDDOWN($B54,10)>=ROUNDDOWN(Tantárgylista[KEZDÉS IDŐPONTJA],10))*($B54<=Tantárgylista[BEFEJEZÉS IDŐPONTJA]),Tantárgylista[EGYEDI]),Tantárgylista[EGYEDI],0),2),0)","v":0},{"$f":"IFERROR(INDEX(Tantárgylista[],MATCH(SUMPRODUCT((Tantárgylista[NAP]=Órarend[[#Headers],[CSÜTÖRTÖK]])*(ROUNDDOWN($B54,10)>=ROUNDDOWN(Tantárgylista[KEZDÉS IDŐPONTJA],10))*($B54<=Tantárgylista[BEFEJEZÉS IDŐPONTJA]),Tantárgylista[EGYEDI]),Tantárgylista[EGYEDI],0),2),0)","v":0},{"$f":"IFERROR(INDEX(Tantárgylista[],MATCH(SUMPRODUCT((Tantárgylista[NAP]=Órarend[[#Headers],[PÉNTEK]])*(ROUNDDOWN($B54,10)>=ROUNDDOWN(Tantárgylista[KEZDÉS IDŐPONTJA],10))*($B54<=Tantárgylista[BEFEJEZÉS IDŐPONTJA]),Tantárgylista[EGYEDI]),Tantárgylista[EGYEDI],0),2),0)","v":0},{"$f":"IFERROR(INDEX(Tantárgylista[],MATCH(SUMPRODUCT((Tantárgylista[NAP]=Órarend[[#Headers],[SZOMBAT]])*(ROUNDDOWN($B54,10)>=ROUNDDOWN(Tantárgylista[KEZDÉS IDŐPONTJA],10))*($B54<=Tantárgylista[BEFEJEZÉS IDŐPONTJA]),Tantárgylista[EGYEDI]),Tantárgylista[EGYEDI],0),2),0)","v":0}]
[null,"20:45:00",{"$f":"IFERROR(INDEX(Tantárgylista[],MATCH(SUMPRODUCT((Tantárgylista[NAP]=Órarend[[#Headers],[VASÁRNAP]])*(ROUNDDOWN($B55,10)>=ROUNDDOWN(Tantárgylista[KEZDÉS IDŐPONTJA],10))*($B55<=Tantárgylista[BEFEJEZÉS IDŐPONTJA]),Tantárgylista[EGYEDI]),Tantárgylista[EGYEDI],0),2),0)","v":0},{"$f":"IFERROR(INDEX(Tantárgylista[],MATCH(SUMPRODUCT((Tantárgylista[NAP]=Órarend[[#Headers],[HÉTFŐ]])*(ROUNDDOWN($B55,10)>=ROUNDDOWN(Tantárgylista[KEZDÉS IDŐPONTJA],10))*($B55<=Tantárgylista[BEFEJEZÉS IDŐPONTJA]),Tantárgylista[EGYEDI]),Tantárgylista[EGYEDI],0),2),0)","v":0},{"$f":"IFERROR(INDEX(Tantárgylista[],MATCH(SUMPRODUCT((Tantárgylista[NAP]=Órarend[[#Headers],[KEDD]])*(ROUNDDOWN($B55,10)>=ROUNDDOWN(Tantárgylista[KEZDÉS IDŐPONTJA],10))*($B55<=Tantárgylista[BEFEJEZÉS IDŐPONTJA]),Tantárgylista[EGYEDI]),Tantárgylista[EGYEDI],0),2),0)","v":0},{"$f":"IFERROR(INDEX(Tantárgylista[],MATCH(SUMPRODUCT((Tantárgylista[NAP]=Órarend[[#Headers],[SZERDA]])*(ROUNDDOWN($B55,10)>=ROUNDDOWN(Tantárgylista[KEZDÉS IDŐPONTJA],10))*($B55<=Tantárgylista[BEFEJEZÉS IDŐPONTJA]),Tantárgylista[EGYEDI]),Tantárgylista[EGYEDI],0),2),0)","v":0},{"$f":"IFERROR(INDEX(Tantárgylista[],MATCH(SUMPRODUCT((Tantárgylista[NAP]=Órarend[[#Headers],[CSÜTÖRTÖK]])*(ROUNDDOWN($B55,10)>=ROUNDDOWN(Tantárgylista[KEZDÉS IDŐPONTJA],10))*($B55<=Tantárgylista[BEFEJEZÉS IDŐPONTJA]),Tantárgylista[EGYEDI]),Tantárgylista[EGYEDI],0),2),0)","v":0},{"$f":"IFERROR(INDEX(Tantárgylista[],MATCH(SUMPRODUCT((Tantárgylista[NAP]=Órarend[[#Headers],[PÉNTEK]])*(ROUNDDOWN($B55,10)>=ROUNDDOWN(Tantárgylista[KEZDÉS IDŐPONTJA],10))*($B55<=Tantárgylista[BEFEJEZÉS IDŐPONTJA]),Tantárgylista[EGYEDI]),Tantárgylista[EGYEDI],0),2),0)","v":0},{"$f":"IFERROR(INDEX(Tantárgylista[],MATCH(SUMPRODUCT((Tantárgylista[NAP]=Órarend[[#Headers],[SZOMBAT]])*(ROUNDDOWN($B55,10)>=ROUNDDOWN(Tantárgylista[KEZDÉS IDŐPONTJA],10))*($B55<=Tantárgylista[BEFEJEZÉS IDŐPONTJA]),Tantárgylista[EGYEDI]),Tantárgylista[EGYEDI],0),2),0)","v":0}]
[null,"21:00:00",{"$f":"IFERROR(INDEX(Tantárgylista[],MATCH(SUMPRODUCT((Tantárgylista[NAP]=Órarend[[#Headers],[VASÁRNAP]])*(ROUNDDOWN($B56,10)>=ROUNDDOWN(Tantárgylista[KEZDÉS IDŐPONTJA],10))*($B56<=Tantárgylista[BEFEJEZÉS IDŐPONTJA]),Tantárgylista[EGYEDI]),Tantárgylista[EGYEDI],0),2),0)","v":0},{"$f":"IFERROR(INDEX(Tantárgylista[],MATCH(SUMPRODUCT((Tantárgylista[NAP]=Órarend[[#Headers],[HÉTFŐ]])*(ROUNDDOWN($B56,10)>=ROUNDDOWN(Tantárgylista[KEZDÉS IDŐPONTJA],10))*($B56<=Tantárgylista[BEFEJEZÉS IDŐPONTJA]),Tantárgylista[EGYEDI]),Tantárgylista[EGYEDI],0),2),0)","v":0},{"$f":"IFERROR(INDEX(Tantárgylista[],MATCH(SUMPRODUCT((Tantárgylista[NAP]=Órarend[[#Headers],[KEDD]])*(ROUNDDOWN($B56,10)>=ROUNDDOWN(Tantárgylista[KEZDÉS IDŐPONTJA],10))*($B56<=Tantárgylista[BEFEJEZÉS IDŐPONTJA]),Tantárgylista[EGYEDI]),Tantárgylista[EGYEDI],0),2),0)","v":0},{"$f":"IFERROR(INDEX(Tantárgylista[],MATCH(SUMPRODUCT((Tantárgylista[NAP]=Órarend[[#Headers],[SZERDA]])*(ROUNDDOWN($B56,10)>=ROUNDDOWN(Tantárgylista[KEZDÉS IDŐPONTJA],10))*($B56<=Tantárgylista[BEFEJEZÉS IDŐPONTJA]),Tantárgylista[EGYEDI]),Tantárgylista[EGYEDI],0),2),0)","v":0},{"$f":"IFERROR(INDEX(Tantárgylista[],MATCH(SUMPRODUCT((Tantárgylista[NAP]=Órarend[[#Headers],[CSÜTÖRTÖK]])*(ROUNDDOWN($B56,10)>=ROUNDDOWN(Tantárgylista[KEZDÉS IDŐPONTJA],10))*($B56<=Tantárgylista[BEFEJEZÉS IDŐPONTJA]),Tantárgylista[EGYEDI]),Tantárgylista[EGYEDI],0),2),0)","v":0},{"$f":"IFERROR(INDEX(Tantárgylista[],MATCH(SUMPRODUCT((Tantárgylista[NAP]=Órarend[[#Headers],[PÉNTEK]])*(ROUNDDOWN($B56,10)>=ROUNDDOWN(Tantárgylista[KEZDÉS IDŐPONTJA],10))*($B56<=Tantárgylista[BEFEJEZÉS IDŐPONTJA]),Tantárgylista[EGYEDI]),Tantárgylista[EGYEDI],0),2),0)","v":0},{"$f":"IFERROR(INDEX(Tantárgylista[],MATCH(SUMPRODUCT((Tantárgylista[NAP]=Órarend[[#Headers],[SZOMBAT]])*(ROUNDDOWN($B56,10)>=ROUNDDOWN(Tantárgylista[KEZDÉS IDŐPONTJA],10))*($B56<=Tantárgylista[BEFEJEZÉS IDŐPONTJA]),Tantárgylista[EGYEDI]),Tantárgylista[EGYEDI],0),2),0)","v":0}]

{"sheet":"Tantárgylista","index":1,"n_rows":10,"n_cols":8,"rows_kept":10,"merged":[[0,1,0,5],[0,6,0,7]]}
[null,"TANTÁRGYLISTA",{"$nulls":4},"Órarend"]
[null,"TANTÁRGY","Azonosító","NAP","HELY","KEZDÉS IDŐPONTJA","BEFEJEZÉS IDŐPONTJA","EGYEDI"]
[null,"Technikai szövegírás","TI-121","HÉTFŐ","A épület","13:00:00","14:00:00",{"$f":"ROW()-ROW(Tantárgylista[[#Headers],[EGYEDI]])","v":1}]
[null,"Technikai szövegírás","TI-121","SZERDA","A épület","13:00:00","14:00:00",{"$f":"ROW()-ROW(Tantárgylista[[#Headers],[EGYEDI]])","v":2}]
[null,"Retorika","RE-111","HÉTFŐ","B épület","16:00:00","17:00:00",{"$f":"ROW()-ROW(Tantárgylista[[#Headers],[EGYEDI]])","v":3}]
[null,"Egészség és edzettség","EE-295","KEDD","B épület","11:00:00","12:00:00",{"$f":"ROW()-ROW(Tantárgylista[[#Headers],[EGYEDI]])","v":4}]
[null,"Egészség és edzettség","EE-295","CSÜTÖRTÖK","B épület","11:00:00","12:00:00",{"$f":"ROW()-ROW(Tantárgylista[[#Headers],[EGYEDI]])","v":5}]
[null,"Algebra","MAT-113","HÉTFŐ","C épület","08:10:00","09:15:00",{"$f":"ROW()-ROW(Tantárgylista[[#Headers],[EGYEDI]])","v":6}]
[null,"Algebra","MAT-113","SZERDA","C épület","08:10:00","09:15:00",{"$f":"ROW()-ROW(Tantárgylista[[#Headers],[EGYEDI]])","v":7}]
[null,"Algebra","MAT-113","PÉNTEK","C épület","08:10:00","09:15:00",{"$f":"ROW()-ROW(Tantárgylista[[#Headers],[EGYEDI]])","v":8}]